{"text_format":"1","workbook":"xlsx","n_sheets":5,"sheets":["How To Use This Tool","Enter Company Names","CSRHub Ratings","CSRD Score Overview","CSRD Mapping"],"not_rendered":{"charts":0,"images":6,"macros":1,"external_links":0,"defined_names":35,"comments":1,"pivot_tables":0},"unopened":[],"bounds":{"document_bytes":16777216,"sheet_cells":100000,"rows_first":2000,"rows_last":500,"rows_between":2000,"halvings":0,"cell_chars":16384,"cell_head_chars":4096},"cells_cut":0,"cells_raw":0,"read":"whole","date_system":"1900"}

{"sheet":"How To Use This Tool","index":0,"n_rows":57,"n_cols":18,"rows_kept":57,"cut":false,"hidden":false,"merged":[[5,8,5,9],[7,8,7,17],[5,0,5,5],[7,0,7,1],[13,0,13,5],[8,0,9,6],[14,0,14,6],[19,0,19,3],[42,0,44,6],[50,0,54,6],[56,0,56,7],[20,0,20,6],[25,0,25,2],[26,0,26,6],[31,0,31,6],[32,0,39,6],[41,0,41,1],[16,0,16,3],[17,0,17,6]]}
[]
[]
[]
[]
[]
["How to Use the CSRHub CSRD Calculator",null,null,null,null,null,null,null,"CSRD Materiality Threshold Control"]
[null,null,null,null,null,null,null,null,"Customize Your CSRD Materiality Level",0.87]
["Background",null,null,null,null,null,null,null,"CSRD Compliance Results"]
["CSRD (The Corporate Sustainability Reporting Directive) has been enacted by the European Union (EU) to encourage higher quality ESG reporting by entities who operate in the EU. At present, entities must only report if they are in \"material compliance\" with CSRD's requirements. We expect in the future that entities will be required to \"correct\" their performance in areas where they fail to comply or \"explain\" why they do not.",null,null,null,null,null,null,null,"Company Name",{"$f":"'CSRD Score Overview'!B14","v":"Affected communities - Communities’ civil and political rights"},{"$f":"'CSRD Score Overview'!C14","v":"Affected communities - Communities' economic social and cultural rights"},{"$f":"'CSRD Score Overview'!D14","v":"Affected communities - Rights of indigenous peoples"},{"$f":"'CSRD Score Overview'!E14","v":"Biodiversity and ecosystems - Impacts and dependencies on ecosystem services"},{"$f":"'CSRD Score Overview'!F14","v":"Biodiversity and ecosystems - Impacts on the extent and condition of ecosystems"},{"$f":"'CSRD Score Overview'!G14","v":"Biodiversity and ecosystems - Impacts on the state of species"},{"$f":"'CSRD Score Overview'!H14","v":"Business Conduct - Animal welfare"},{"$f":"'CSRD Score Overview'!I14","v":"Business Conduct - Corporate culture"},{"$f":"'CSRD Score Overview'!J14","v":"Business Conduct - Corruption and bribery"}]
["","","","","","","","",{"$f":"'CSRD Score Overview'!A15","v":"Tesla Motors, Inc."},{"$f":"'CSRD Score Overview'!B15","v":50.045999999999999},{"$f":"'CSRD Score Overview'!C15","v":50.033999999999999},{"$f":"'CSRD Score Overview'!D15","v":50.033999999999999},{"$f":"'CSRD Score Overview'!E15","v":48.868000000000009},{"$f":"'CSRD Score Overview'!F15","v":48.868000000000009},{"$f":"'CSRD Score Overview'!G15","v":48.868000000000009},{"$f":"'CSRD Score Overview'!H15","v":47.81},{"$f":"'CSRD Score Overview'!I15","v":46.412499999999994},{"$f":"'CSRD Score Overview'!J15","v":46.724999999999994}]
["","","","","","","","","Comparator Average",{"$f":"'CSRD Score Overview'!B10","v":55.682000000000002},{"$f":"'CSRD Score Overview'!C10","v":55.17744444444444},{"$f":"'CSRD Score Overview'!D10","v":55.17744444444444},{"$f":"'CSRD Score Overview'!E10","v":59.055777777777784},{"$f":"'CSRD Score Overview'!F10","v":59.055777777777784},{"$f":"'CSRD Score Overview'!G10","v":59.055777777777784},{"$f":"'CSRD Score Overview'!H10","v":53.00566666666667},{"$f":"'CSRD Score Overview'!I10","v":52.656222222222226},{"$f":"'CSRD Score Overview'!J10","v":52.595555555555556}]
["","","","","","","","","Materiality Test",{"$f":"IF(J10<J11*$J$7,\"Below\",\"Pass\")","v":"Pass"},{"$f":"IF(K10<K11*$J$7,\"Below\",\"Pass\")","v":"Pass"},"Pass","Below","Below","Below","Pass","Pass","Pass"]
[]
["35 Areas of Focus Have Been Mapped to ESG Topics"]
["At present, CSRD focuses on 35 distinct areas of sustainability performance. The regulations that underly it refer to hundreds of indicators that entities can test to determine their level of compliance. We have mapped the top 35 areas to the 12 sustainability-related topics that CSRHub rates. This mapping is shown on the CSRD Mapping tab.",null,null,null,null,null,null,null,"Company Name",{"$f":"'CSRD Score Overview'!K14","v":"Business Conduct - Management of relationships with suppliers including payment practices"},{"$f":"'CSRD Score Overview'!L14","v":"Business Conduct - Political engagement"},{"$f":"'CSRD Score Overview'!M14","v":"Business Conduct - Protection of whistleblowers"},{"$f":"'CSRD Score Overview'!N14","v":"Circular economy - Resource outflows, related to products and services"},{"$f":"'CSRD Score Overview'!O14","v":"Circular economy - Resources inflows, including resource use"},{"$f":"'CSRD Score Overview'!P14","v":"Circular economy - Waste"},{"$f":"'CSRD Score Overview'!Q14","v":"Climate change - Climate change adaptation"},{"$f":"'CSRD Score Overview'!R14","v":"Climate change - Climate change mitigation"},{"$f":"'CSRD Score Overview'!S14","v":"Climate change - Energy"}]
["","","","","","","","",{"$f":"'CSRD Score Overview'!A15","v":"Tesla Motors, Inc."},{"$f":"'CSRD Score Overview'!K15","v":48.6},{"$f":"'CSRD Score Overview'!L15","v":45.841000000000001},{"$f":"'CSRD Score Overview'!M15","v":47.984999999999999},{"$f":"'CSRD Score Overview'!N15","v":49.875999999999998},{"$f":"'CSRD Score Overview'!O15","v":49.728000000000002},{"$f":"'CSRD Score Overview'!P15","v":49.728000000000002},{"$f":"'CSRD Score Overview'!Q15","v":52.488},{"$f":"'CSRD Score Overview'!R15","v":52.488},{"$f":"'CSRD Score Overview'!S15","v":52.488}]
["The Enter Company Names Tab",null,null,null,"","","","","Comparator Average",{"$f":"'CSRD Score Overview'!K10","v":55.776444444444444},{"$f":"'CSRD Score Overview'!L10","v":52.537444444444446},{"$f":"'CSRD Score Overview'!M10","v":52.937777777777775},{"$f":"'CSRD Score Overview'!N10","v":57.792000000000002},{"$f":"'CSRD Score Overview'!O10","v":58.223111111111116},{"$f":"'CSRD Score Overview'!P10","v":58.223111111111116},{"$f":"'CSRD Score Overview'!Q10","v":57.748333333333335},{"$f":"'CSRD Score Overview'!R10","v":57.748333333333335},{"$f":"'CSRD Score Overview'!S10","v":57.748333333333335}]
["This tab is the starting point. It allows you search the names of the companies you wish to evaluate. Please enter in the date of data you are wanting to evaluate. You can verify the company name in column J. The instructions for matching the correct entity and entering the correct date can be found in cells A4-A10.",null,null,null,null,null,null,"","Materiality Test",{"$f":"IF(J16<J17*$J$7,\"Below\",\"Pass\")","v":"Pass"},"Pass","Pass","Below","Below","Below","Pass","Pass","Pass"]
[]
["The CSRD Score Overview Tab"]
["This tab contains an estimate of the relative performance for the studied companies across the 35 CSRD focus areas. The \"focus company\" is the top and the \"comparators\" are below it. The average, best, and worst ratings numbers at the top of the sheet reference the comparators. The focus company is excluded.",null,null,null,null,null,null,null,"Company Name",{"$f":"'CSRD Score Overview'!T14","v":"Consumers and end-users - Health and safety of consumers and/or end-users"},{"$f":"'CSRD Score Overview'!U14","v":"Consumers and end-users - Information-related impacts for consumers and/or end-users"},{"$f":"'CSRD Score Overview'!V14","v":"Consumers and end-users - Social inclusion of consumers and/or end-users"},{"$f":"'CSRD Score Overview'!W14","v":"Own workforce - Equal treatment and opportunities for all"},{"$f":"'CSRD Score Overview'!X14","v":"Own workforce - Working conditions (overall)"},{"$f":"'CSRD Score Overview'!Y14","v":"Pollution - Microplastics"},{"$f":"'CSRD Score Overview'!Z14","v":"Pollution - Pollution of air"},{"$f":"'CSRD Score Overview'!AA14","v":"Pollution - Pollution of living organisms and food resources"},{"$f":"'CSRD Score Overview'!AB14","v":"Pollution - Pollution of soil"}]
["","","","","","","","",{"$f":"'CSRD Score Overview'!A15","v":"Tesla Motors, Inc."},{"$f":"'CSRD Score Overview'!T15","v":48.033999999999999},{"$f":"'CSRD Score Overview'!U15","v":47.997999999999998},{"$f":"'CSRD Score Overview'!V15","v":49.832000000000008},{"$f":"'CSRD Score Overview'!W15","v":47.915999999999997},{"$f":"'CSRD Score Overview'!X15","v":44.352000000000004},{"$f":"'CSRD Score Overview'!Y15","v":48.881999999999998},{"$f":"'CSRD Score Overview'!Z15","v":50.789000000000001},{"$f":"'CSRD Score Overview'!AA15","v":48.881999999999998},{"$f":"'CSRD Score Overview'!AB15","v":48.875}]
["","","","","","","","","Comparator Average",{"$f":"'CSRD Score Overview'!T10","v":53.706111111111113},{"$f":"'CSRD Score Overview'!U10","v":54.193444444444452},{"$f":"'CSRD Score Overview'!V10","v":55.460666666666675},{"$f":"'CSRD Score Overview'!W10","v":56.791555555555554},{"$f":"'CSRD Score Overview'!X10","v":52.81111111111111},{"$f":"'CSRD Score Overview'!Y10","v":58.178777777777768},{"$f":"'CSRD Score Overview'!Z10","v":58.081500000000005},{"$f":"'CSRD Score Overview'!AA10","v":58.178777777777768},{"$f":"'CSRD Score Overview'!AB10","v":58.617277777777772}]
["","","","","","","","","Materiality Test",{"$f":"IF(J22<J23*$J$7,\"Below\",\"Pass\")","v":"Pass"},{"$f":"IF(K22<K23*$J$7,\"Below\",\"Pass\")","v":"Pass"},"Pass","Below","Below","Below","Pass","Below",{"$f":"IF(R22<R23*$J$7,\"Below\",\"Pass\")","v":"Below"}]
[]
["The CSRHub Ratings Tab"]
["This date is pulled from the Enter Company names tab when you click Calculate. The \"focus company\" is the top and the \"comparators\" are below it. The comparators average, best, and worst ratings are listed at the top of the sheet. The focus company is excluded.",null,null,null,null,null,null,null,"Company Name",{"$f":"'CSRD Score Overview'!AC14","v":"Pollution - Pollution of water"},{"$f":"'CSRD Score Overview'!AD14","v":"Pollution - Substances of concern"},{"$f":"'CSRD Score Overview'!AE14","v":"Pollution - Substances of very high concern"},{"$f":"'CSRD Score Overview'!AF14","v":"Water and marine resources - Direct impact drivers of biodiversity loss"},{"$f":"'CSRD Score Overview'!AG14","v":"Water and marine resources - Marine resources"},{"$f":"'CSRD Score Overview'!AH14","v":"Water and marine resources - Water"},{"$f":"'CSRD Score Overview'!AI14","v":"Workers in the Value Chain - Equal treatment and opportunities for all"},{"$f":"'CSRD Score Overview'!AJ14","v":"Workers in the Value Chain - Working conditions (overall)"}]
["","","","","","","","",{"$f":"'CSRD Score Overview'!A15","v":"Tesla Motors, Inc."},{"$f":"'CSRD Score Overview'!AC15","v":48.875},{"$f":"'CSRD Score Overview'!AD15","v":48.875},{"$f":"'CSRD Score Overview'!AE15","v":48.875},{"$f":"'CSRD Score Overview'!AF15","v":48.875},{"$f":"'CSRD Score Overview'!AG15","v":48.875},{"$f":"'CSRD Score Overview'!AH15","v":48.875},{"$f":"'CSRD Score Overview'!AI15","v":46.633000000000003},{"$f":"'CSRD Score Overview'!AJ15","v":46.989999999999995}]
["","","","","","","","","Comparator Average",{"$f":"'CSRD Score Overview'!AC10","v":58.617277777777772},{"$f":"'CSRD Score Overview'!AD10","v":58.617277777777772},{"$f":"'CSRD Score Overview'!AE10","v":58.617277777777772},{"$f":"'CSRD Score Overview'!AF10","v":58.617277777777772},{"$f":"'CSRD Score Overview'!AG10","v":58.617277777777772},{"$f":"'CSRD Score Overview'!AH10","v":58.617277777777772},{"$f":"'CSRD Score Overview'!AI10","v":54.983222222222217},{"$f":"'CSRD Score Overview'!AJ10","v":55.212111111111113}]
["","","","","","","","","Materiality Test",{"$f":"IF(J28<J29*$J$7,\"Below\",\"Pass\")","v":"Below"},{"$f":"IF(K28<K29*$J$7,\"Below\",\"Pass\")","v":"Below"},"Below","Below","Below","Below","Below","Below"]
[]
["Set Your threshold for Materiality and Use the Tool"]
["To the right at the top of the page is a cell to \"Customize Your CSRD Materiality Level\" for this tool. If you want to test if the focus company is in line with the average for its comparators, set the threshold at 100%. If you would accept the focus company being a certain percentage below the average for a CSRD Focus area, set the threshold to the desired percentage and click Calculate. To the right of these instructions, you will see five groups of comparisons between the focus company and the average of the comparators. When the focus company fails to meet the threshold you set, you will see a flag that says \"Below.\" When it meets the threshold, the flag will say \"Pass.\""]
[]
[]
[]
[]
[]
[]
[]
[]
["What to Do, Next?"]
["When the focus company appears likely to fail the materiality test for a particular CSRD area, it should consider taking steps to rectify this issue.These steps could include:"]
[]
[]
[" 1. Improve policies and practices in the area of concern."]
[" 2. Gather more data to allow better understanding of performance in the area."]
[" 3. Improve reporting to ratings groups and share relevant indicators."]
[]
[]
["CSRHub's ratings are based on the views of hundreds of ratings groups. These groups typically rely on both formal and informal reporting from the entities they cover plus their own internal analysis techniques and models. If necessary, CSRHub can supply additional reports and tools to help improve reporting and strength an entity's engagement with rating sources."]
[]
[]
[]
[]
[]
["For more information on CSRHub’s methodology, please see this page on CSRHub’s web site."]

{"sheet":"Enter Company Names","index":1,"n_rows":44,"n_cols":24,"rows_kept":44,"cut":false,"hidden":false,"merged":[[0,17,0,23],[2,17,4,18],[2,13,3,15],[5,17,5,23],[12,0,12,1],[12,10,12,15]]}
[null,null,null,null,null,null,null,null,null,null,null,null,null,null,null,null,null,"Controls for Fine Tuning Scope of Search"]
[null,null,null,null,null,null,null,null,null,null,null,null,null,null,null,null,null,null,null,null,"Name","Ticker","URL","ISIN"]
["Enter The Company Or Companies You Want To Study",null,null,null,null,null,null,null,null,null,null,null,null,"NA = Rating or information not available. This can also be due to a company with only partial ratings. We do not provide an overall score for partially rated companies.",null,null,null,"Set to include (I) or exclude (X) fully rated, partially rated and/or unrated companies from your search",null,"Fully Rated","I","I","I","I"]
["1. Enter a company name, part of a company name, or a brand in column B, a ticker into column C, a web URL into column D, and/or an ISIN number into column E.",null,null,null,null,null,null,null,null,null,null,null,null,null,null,null,null,null,null,"Partially Rated","I","I","I","I"]
["2. If the CSRHub name you want does not appear in column J, use the CSRHub name lookup tool (top menu, CSRHub…Company) to paste the right text company name into column J.",null,null,null,null,null,null,null,null,null,null,null,null,null,null,null,null,null,null,"Not Rated","I","I","I","I"]
["3. The data in columns K to Q should help you double check that you have the right name match. The name in column J is the one used automatically on other sheets.",null,null,null,null,null,null,null,null,null,null,null,null,null,"Version:",{"$f":"CSRHubAPIVersionNumber()","v":"3.3"},null,"Changes in the settings above will change the search parameter in cells F13-I13"]
["4. If you need to lookup more than 30 companies, you can copy the formulas in row 44 down as far as you wish.",null,null,null,null,null,null,null,null,null,null,null,null,null,"Last Content Update:","2026-03-26"]
["5. Use column A to store your internal identifier or version of the company name for later reference. You can change the scope of search using the box starting in column R.",null,null,null,null,null,null,null,null,null,null,null,null,null,"Last Code Update:",{"$f":"CSRHubAPIVersionDate()","v":"2025-12-25"},null,null,"Month","Year"]
["6. Request a specific Month and Year of data, in cells S9 and T9.  Choose Formulas from the top menu, then Calculate Sheet. This will allow our database to update the sheet.",null,null,null,null,null,null,null,null,null,null,null,null,null,"Includes MonetDB Mac Update",null,null,"Data Date","February",2026]
["7. Enter your CSRHub site credentials (username/password) when directed."]
[]
[]
["Top Line Summary",null,{"$f":"COUNT(N15:N212) & \" Companies\"","v":"10 Companies"},null,"Search scope parameters (see Column P)",{"$f":"IF(AND(U3=\"I\",U4=\"I\",U5=\"I\"),\"0\",IF(AND(U3=\"I\",U4=\"X\",U5=\"X\"),\"1\",IF(AND(U3=\"I\",U4=\"I\",U5=\"X\"),\"2\",IF(AND(U3=\"X\",U4=\"I\",U5=\"X\"),\"3\",IF(AND(U3=\"X\",U4=\"X\",U5=\"I\"),\"4\",IF(AND(U3=\"X\",U4=\"I\",U5=\"I\"),\"5\",IF(AND(U3=\"I\",U4=\"X\",U5=\"I\"),\"6\",\"0\")))))))","v":"0"},{"$f":"IF(AND(V3=\"I\",V4=\"I\",V5=\"I\"),\"0\",IF(AND(V3=\"I\",V4=\"X\",V5=\"X\"),\"1\",IF(AND(V3=\"I\",V4=\"I\",V5=\"X\"),\"2\",IF(AND(V3=\"X\",V4=\"I\",V5=\"X\"),\"3\",IF(AND(V3=\"X\",V4=\"X\",V5=\"I\"),\"4\",IF(AND(V3=\"X\",V4=\"I\",V5=\"I\"),\"5\",IF(AND(V3=\"I\",V4=\"X\",V5=\"I\"),\"6\",\"0\")))))))","v":"0"},"0","0","More instructions and examples are available online.","Ways to Double Check the Name"]
["Internal ID (Optional)","Enter Name","Enter Ticker (No exchange code)","Enter web URL","Enter ISIN","Simple Lookup (NA or blank = didn't work)","Ticker Lookup (NA or blank = didn't work)","URL Lookup (NA or blank = didn't work)","ISIN Lookup (NA or blank = didn't work)","Best Guess (replace using name lookup tool when NA)","Country","City","Ticker","# of Sources","ISIN","Industry","Overall Ratings"]
[null,"Tesla",null,null,null,{"$f":"csrhubfindcompanyname($B15,0,F$13)","v":"Tesla Motors, Inc."},{"$f":"csrhubfindcompanyname($C15,3,G$13)","v":"NA"},{"$f":"csrhubfindcompanyname($D15,5,H$13)","v":"NA"},{"$f":"csrhubfindcompanyname($E15,4,I$13)","v":"NA"},{"$f":"IF(I15=\"NA\",IF(H15=\"NA\",IF(F15=\"NA\",IF(G15= \"NA\",\"NA\",G15),F15),H15),I15)","v":"Tesla Motors, Inc."},{"$f":"csrhubcompanycountry(J15)","v":"USA"},{"$f":"CSRHubCompanycity(J15)","v":"Palo Alto"},{"$f":"CSRHubCompanyTicker(J15)","v":"TSLA"},{"$f":"CSRHubDScount(J15)","v":66},{"$f":"csrhubcompanyisin(J15)","v":"US88160R1014"},{"$f":"CSRHubCompanyIndustry(J15)","v":"Motor Vehicle Manufacturing"},{"$f":"CSRHubRating(J15)","v":47.500100000000003}]
[null,"Porsche",null,null,null,{"$f":"csrhubfindcompanyname($B16,0,F$13)","v":"Porsche AG"},"NA","NA","NA","Porsche AG",{"$f":"csrhubcompanycountry(J16)","v":"Germany"},{"$f":"CSRHubCompanycity(J16)","v":"Stuttgart"},{"$f":"CSRHubCompanyTicker(J16)","v":"DRPRY"},{"$f":"CSRHubDScount(J16)","v":25},{"$f":"csrhubcompanyisin(J16)","v":"DE000PAG9113"},{"$f":"CSRHubCompanyIndustry(J16)","v":"Motor Vehicle Manufacturing"},{"$f":"CSRHubRating(J16)","v":54.002699999999997}]
[null,"Volkswagen",null,null,null,"Volkswagen AG","NA","NA","NA","Volkswagen AG",{"$f":"csrhubcompanycountry(J17)","v":"Germany"},"Wolfsburg","VOW3",58,"DE0007664039","Motor Vehicle Manufacturing",58.445999999999998]
[null,"Rivian",null,null,null,"Rivian Automotive Inc","NA","NA","NA","Rivian Automotive Inc","USA","Irvine","RIVN",33,"US76954A1034","Motor Vehicle Manufacturing",48.556399999999996]
[null,"Polestar",null,null,null,"Polestar Automotive Holding UK Plc","NA","NA","NA","Polestar Automotive Holding UK Plc","United Kingdom","Dunstable","PSNY",18,"US7311052010","Other Services",52.5212]
[null,"Ford",null,null,null,"Ford Motor Company","NA","NA","NA","Ford Motor Company","USA","Dearborn","F",75,"US3453708600","Motor Vehicle Manufacturing",60.091900000000003]
[null,"Hyundai",null,null,null,"Hyundai Motor Co.","NA",{"$f":"csrhubfindcompanyname($D21,5,H$13)","v":"NA"},"NA",{"$f":"IF(I21=\"NA\",IF(H21=\"NA\",IF(F21=\"NA\",IF(G21= \"NA\",\"NA\",G21),F21),H21),I21)","v":"Hyundai Motor Co."},"South Korea","Seoul","5380",51,"KR7005380001","Motor Vehicle Manufacturing",60.001899999999999]
[null,"Kia",null,null,null,"Kia Motors Corporation","NA",{"$f":"csrhubfindcompanyname($D22,5,H$13)","v":"NA"},"NA",{"$f":"IF(I22=\"NA\",IF(H22=\"NA\",IF(F22=\"NA\",IF(G22= \"NA\",\"NA\",G22),F22),H22),I22)","v":"Kia Motors Corporation"},"South Korea","Seoul","270",42,"KR7000270009","Motor Vehicle Manufacturing",59.536000000000001]
[null,"BMW",null,null,null,"BMW","NA","NA","NA","BMW","Germany","Munich","BMW",57,"DE0005190003","Motor Vehicle Manufacturing",59.604399999999998]
[null,"Nissan",null,null,null,"NISSAN MOTOR CO.,LTD.","NA","NA","NA","NISSAN MOTOR CO.,LTD.","Japan","Chuo-ku","7201",51,"JP3672400003","Motor Vehicle Manufacturing",58.586599999999997]
[null,null,null,null,null,"NA","NA","NA","NA","NA","","","","NA","","NA","NA"]
[null,null,null,null,null,"NA","NA","NA","NA","NA","","","","NA","","NA","NA"]
[null,null,null,null,null,"NA","NA","NA","NA","NA","","","","NA","","NA","NA"]
[null,null,null,null,null,"NA","NA","NA","NA","NA","","","","NA","","NA","NA"]
[null,null,null,null,null,"NA","NA","NA","NA","NA","","","","NA","","NA","NA"]
[null,null,null,null,null,"NA","NA","NA","NA","NA","","","","NA","","NA","NA"]
[null,null,null,null,null,"NA","NA","NA","NA","NA","","","","NA","","NA","NA"]
[null,null,null,null,null,"NA","NA","NA","NA","NA","","","","NA","","NA","NA"]
[null,null,null,null,null,"NA","NA","NA","NA","NA","","","","NA","","NA","NA"]
[null,null,null,null,null,"NA","NA","NA","NA","NA","","","","NA","","NA","NA"]
[null,null,null,null,null,"NA","NA","NA","NA","NA","","","","NA","","NA","NA"]
[null,null,null,null,null,"NA","NA","NA","NA","NA","","","","NA","","NA","NA"]
[null,null,null,null,null,"NA","NA","NA","NA","NA","","","","NA","","NA","NA"]
[null,null,null,null,null,"NA","NA","NA","NA","NA","","","","NA","","NA","NA"]
[null,null,null,null,null,"NA","NA","NA","NA","NA","","","","NA","","NA","NA"]
[null,null,null,null,null,"NA","NA","NA","NA","NA","","","","NA","","NA","NA"]
[null,null,null,null,null,"NA","NA","NA","NA","NA","","","","NA","","NA","NA"]
[null,null,null,null,null,"NA","NA","NA","NA","NA","","","","NA","","NA","NA"]
[null,null,null,null,null,"NA","NA","NA","NA","NA","","","","NA","","NA","NA"]
[null,null,null,null,null,"NA","NA","NA","NA","NA","","","","NA","","NA","NA"]

{"sheet":"CSRHub Ratings","index":2,"n_rows":24,"n_cols":14,"rows_kept":24,"cut":false,"hidden":false,"merged":[[12,0,12,1],[12,2,12,25],[8,2,8,19]]}
[]
[]
["Instructions for CSRD Calculator (Continued)"]
["1. The company names will pull from Enter Names sheet. Verify date is correct when you click Calculate."]
["2. Clear out any old ratings numbers (cell C15 to N15 and down). When prompted, click \"No\" to not delete query."]
["3. Go to CSRHub menu and choose third button (Rebuild Data on This Sheet).  Then do another Excel calculation to update averages."]
[]
[]
[]
[null,"Average Rating",{"$f":"AVERAGEIF(C16:C211,\"<>NA\")","v":54.295555555555559},{"$f":"AVERAGEIF(D16:D211,\"<>NA\")","v":59.341111111111118},54.68555555555556,52.732222222222219,53.202222222222218,51.716666666666669,57.192222222222213,58.99666666666667,59.144444444444453,52.167777777777779,53.023333333333341,54.153333333333336]
[null,"Best Rating",{"$f":"MAX(C16:C211)","v":58.01},{"$f":"MAX(D16:D211)","v":62.83},58.61,57.04,58.18,55.94,62.37,65.34,66.63,57.11,55.81,57.96]
[null,"Worst Rating",{"$f":"MIN(C16:C211)","v":46.42},{"$f":"MIN(D16:D211)","v":53.03},50.49,46.8,43.82,43.68,49.59,47.72,44.11,47.93,50.55,50.7]
[]
["PUT YOUR INTERNAL COMPANY IDENTIFIER HERE","PUT COMPANY NAME OR TICKER HERE",{"$f":"\"Community Dev & Philanthropy Rating (\" & 'Enter Company Names'!$S$9 & \" \" & 'Enter Company Names'!$T$9 & \")\"","v":"Community Dev & Philanthropy Rating (February 2026)"},{"$f":"\"Human Rights & Supply Chain Rating (\" & 'Enter Company Names'!$S$9 & \" \" & 'Enter Company Names'!$T$9 & \")\"","v":"Human Rights & Supply Chain Rating (February 2026)"},{"$f":"\"Product Rating (\" & 'Enter Company Names'!$S$9 & \" \" & 'Enter Company Names'!$T$9 & \")\"","v":"Product Rating (February 2026)"},{"$f":"\"Compensation & Benefits Rating (\" & 'Enter Company Names'!$S$9 & \" \" & 'Enter Company Names'!$T$9 & \")\"","v":"Compensation & Benefits Rating (February 2026)"},{"$f":"\"Diversity & Labor Rights Rating (\" & 'Enter Company Names'!$S$9 & \" \" & 'Enter Company Names'!$T$9 & \")\"","v":"Diversity & Labor Rights Rating (February 2026)"},{"$f":"\"Training, Health & Safety Rating (\" & 'Enter Company Names'!$S$9 & \" \" & 'Enter Company Names'!$T$9 & \")\"","v":"Training, Health & Safety Rating (February 2026)"},{"$f":"\"Energy & Climate Change Rating (\" & 'Enter Company Names'!$S$9 & \" \" & 'Enter Company Names'!$T$9 & \")\"","v":"Energy & Climate Change Rating (February 2026)"},{"$f":"\"Environment Policy & Reporting Rating (\" & 'Enter Company Names'!$S$9 & \" \" & 'Enter Company Names'!$T$9 & \")\"","v":"Environment Policy & Reporting Rating (February 2026)"},{"$f":"\"Resource Management Rating (\" & 'Enter Company Names'!$S$9 & \" \" & 'Enter Company Names'!$T$9 & \")\"","v":"Resource Management Rating (February 2026)"},{"$f":"\"Board Rating (\" & 'Enter Company Names'!$S$9 & \" \" & 'Enter Company Names'!$T$9 & \")\"","v":"Board Rating (February 2026)"},{"$f":"\"Leadership Ethics Rating (\" & 'Enter Company Names'!$S$9 & \" \" & 'Enter Company Names'!$T$9 & \")\"","v":"Leadership Ethics Rating (February 2026)"},{"$f":"\"Transparency & Reporting Rating (\" & 'Enter Company Names'!$S$9 & \" \" & 'Enter Company Names'!$T$9 & \")\"","v":"Transparency & Reporting Rating (February 2026)"}]
[null,{"$f":"'Enter Company Names'!J15","v":"Tesla Motors, Inc."},50.2,50.32,49.22,45.02,43.6,45.94,54.12,47.74,50.56,45.15,48.3,45.76]
[null,{"$f":"'Enter Company Names'!J16","v":"Porsche AG"},54.1,56.84,51.7,53.9,51.87,50.16,49.6,51.92,51.2,49.94,51.07,51.91]
[null,{"$f":"'Enter Company Names'!J17","v":"Volkswagen AG"},54.6,58.8,56.11,50.2,51.92,50.49,57.61,60.15,62.34,48.72,50.55,50.7]
[null,{"$f":"'Enter Company Names'!J18","v":"Rivian Automotive Inc"},49.98,53.03,50.49,46.8,43.82,43.68,54.73,47.72,44.11,50.19,52.27,51.25]
[null,{"$f":"'Enter Company Names'!J19","v":"Polestar Automotive Holding UK Plc"},46.42,55.83,54.1,47.44,49.23,49.85,49.59,48.34,47.49,47.93,54.96,55.38]
[null,{"$f":"'Enter Company Names'!J20","v":"Ford Motor Company"},58.01,62.74,53.77,55.15,55.97,52.3,61.94,65.34,66.12,57.11,55.81,57.96]
[null,{"$f":"'Enter Company Names'!J21","v":"Hyundai Motor Co."},57.59,62.83,58.61,57.04,58.18,55.94,59.41,64.77,66.63,54.78,53.71,56.59]
[null,{"$f":"'Enter Company Names'!J22","v":"Kia Motors Corporation"},54.87,61.23,57.2,56.4,56.62,55.49,57.65,64.099999999999994,64.930000000000007,54.88,52.8,55.69]
[null,{"$f":"'Enter Company Names'!J23","v":"BMW"},57.71,61.62,55.98,56.56,56.06,53.38,61.83,63.35,64.900000000000006,51.36,53.03,53.67]
[null,{"$f":"'Enter Company Names'!J24","v":"NISSAN MOTOR CO.,LTD."},55.38,61.15,54.21,51.1,55.15,54.16,62.37,65.28,64.58,54.6,53.01,54.23]

{"sheet":"CSRD Score Overview","index":3,"n_rows":24,"n_cols":36,"rows_kept":24,"cut":false,"hidden":false,"merged":[[12,0,12,17]]}
[]
[]
[]
["Instructions for CSRD Calculator (Continued)"]
["1. The company names will pull from Enter Company Names sheet."]
["2. Click \"Calculate\" to update CSRHub scores applied to CSRD topics."]
[]
[]
[{"$f":"\"CSRD Score Overview For \"&A15&\"\"","v":"CSRD Score Overview For Tesla Motors, Inc."},{"$f":"B14","v":"Affected communities - Communities’ civil and political rights"},{"$f":"C14","v":"Affected communities - Communities' economic social and cultural rights"},"Affected communities - Rights of indigenous peoples","Biodiversity and ecosystems - Impacts and dependencies on ecosystem services","Biodiversity and ecosystems - Impacts on the extent and condition of ecosystems","Biodiversity and ecosystems - Impacts on the state of species","Business Conduct - Animal welfare","Business Conduct - Corporate culture","Business Conduct - Corruption and bribery","Business Conduct - Management of relationships with suppliers including payment practices","Business Conduct - Political engagement","Business Conduct - Protection of whistleblowers","Circular economy - Resource outflows, related to products and services","Circular economy - Resources inflows, including resource use","Circular economy - Waste","Climate change - Climate change adaptation","Climate change - Climate change mitigation","Climate change - Energy","Consumers and end-users - Health and safety of consumers and/or end-users","Consumers and end-users - Information-related impacts for consumers and/or end-users","Consumers and end-users - Social inclusion of consumers and/or end-users","Own workforce - Equal treatment and opportunities for all","Own workforce - Working conditions (overall)","Pollution - Microplastics","Pollution - Pollution of air","Pollution - Pollution of living organisms and food resources","Pollution - Pollution of soil","Pollution - Pollution of water","Pollution - Substances of concern","Pollution - Substances of very high concern","Water and marine resources - Direct impact drivers of biodiversity loss","Water and marine resources - Marine resources","Water and marine resources - Water","Workers in the Value Chain - Equal treatment and opportunities for all","Workers in the Value Chain - Working conditions (overall)"]
["Average Rating",{"$f":"AVERAGEIF(B16:B217,\"<>0\")","v":55.682000000000002},{"$f":"AVERAGEIF(C16:C217,\"<>0\")","v":55.17744444444444},55.17744444444444,59.055777777777784,59.055777777777784,59.055777777777784,53.00566666666667,52.656222222222226,52.595555555555556,55.776444444444444,52.537444444444446,52.937777777777775,57.792000000000002,58.223111111111116,58.223111111111116,57.748333333333335,57.748333333333335,57.748333333333335,53.706111111111113,54.193444444444452,55.460666666666675,56.791555555555554,52.81111111111111,58.178777777777768,58.081500000000005,58.178777777777768,58.617277777777772,58.617277777777772,58.617277777777772,58.617277777777772,58.617277777777772,58.617277777777772,58.617277777777772,54.983222222222217,55.212111111111113]
["Best Rating",{"$f":"MAX(B16:B217)","v":59.209000000000003},{"$f":"MAX(C16:C217)","v":58.736000000000004},58.736000000000004,65.652000000000001,65.652000000000001,65.652000000000001,55.673999999999999,56.411000000000001,56.46,59.012,56.934999999999995,55.940000000000005,64.037999999999997,64.653999999999996,64.653999999999996,63.173000000000002,63.173000000000002,63.173000000000002,56.893999999999998,57.024000000000001,59.046000000000006,60.742000000000004,57.504000000000005,64.096000000000004,63.518500000000003,64.096000000000004,64.804999999999993,64.804999999999993,64.804999999999993,64.804999999999993,64.804999999999993,64.804999999999993,64.804999999999993,59.188499999999998,59.367999999999995]
["Worst Rating",{"$f":"MIN(B16:B217)","v":50.097000000000001},{"$f":"MIN(C16:C217)","v":49.155999999999999},49.155999999999999,46.275999999999996,46.275999999999996,46.275999999999996,50.558999999999997,49.863500000000002,49.634999999999998,52.370000000000005,49.283999999999999,50.366999999999997,46.384999999999998,46.108000000000004,46.108000000000004,49.13,49.13,49.13,49.56,51.073999999999998,50.794000000000004,49.942,44.388000000000005,47.190999999999995,49.000500000000009,47.190999999999995,46.733499999999999,46.733499999999999,46.733499999999999,46.733499999999999,46.733499999999999,46.733499999999999,46.733499999999999,47.462499999999991,47.462000000000003]
[]
["Company Name",{"$f":"'CSRD Mapping'!B15","v":"Affected communities - Communities’ civil and political rights"},{"$f":"'CSRD Mapping'!B16","v":"Affected communities - Communities' economic social and cultural rights"},{"$f":"'CSRD Mapping'!B17","v":"Affected communities - Rights of indigenous peoples"},{"$f":"'CSRD Mapping'!$B18","v":"Biodiversity and ecosystems - Impacts and dependencies on ecosystem services"},{"$f":"'CSRD Mapping'!$B19","v":"Biodiversity and ecosystems - Impacts on the extent and condition of ecosystems"},{"$f":"'CSRD Mapping'!$B20","v":"Biodiversity and ecosystems - Impacts on the state of species"},{"$f":"'CSRD Mapping'!$B21","v":"Business Conduct - Animal welfare"},{"$f":"'CSRD Mapping'!$B22","v":"Business Conduct - Corporate culture"},{"$f":"'CSRD Mapping'!$B23","v":"Business Conduct - Corruption and bribery"},{"$f":"'CSRD Mapping'!$B24","v":"Business Conduct - Management of relationships with suppliers including payment practices"},{"$f":"'CSRD Mapping'!$B25","v":"Business Conduct - Political engagement"},{"$f":"'CSRD Mapping'!$B26","v":"Business Conduct - Protection of whistleblowers"},{"$f":"'CSRD Mapping'!$B27","v":"Circular economy - Resource outflows, related to products and services"},{"$f":"'CSRD Mapping'!$B28","v":"Circular economy - Resources inflows, including resource use"},{"$f":"'CSRD Mapping'!$B29","v":"Circular economy - Waste"},{"$f":"'CSRD Mapping'!$B30","v":"Climate change - Climate change adaptation"},{"$f":"'CSRD Mapping'!$B31","v":"Climate change - Climate change mitigation"},{"$f":"'CSRD Mapping'!$B32","v":"Climate change - Energy"},{"$f":"'CSRD Mapping'!$B33","v":"Consumers and end-users - Health and safety of consumers and/or end-users"},{"$f":"'CSRD Mapping'!$B34","v":"Consumers and end-users - Information-related impacts for consumers and/or end-users"},{"$f":"'CSRD Mapping'!$B35","v":"Consumers and end-users - Social inclusion of consumers and/or end-users"},{"$f":"'CSRD Mapping'!$B36","v":"Own workforce - Equal treatment and opportunities for all"},{"$f":"'CSRD Mapping'!$B37","v":"Own workforce - Working conditions (overall)"},{"$f":"'CSRD Mapping'!$B38","v":"Pollution - Microplastics"},{"$f":"'CSRD Mapping'!$B39","v":"Pollution - Pollution of air"},{"$f":"'CSRD Mapping'!$B40","v":"Pollution - Pollution of living organisms and food resources"},{"$f":"'CSRD Mapping'!$B41","v":"Pollution - Pollution of soil"},{"$f":"'CSRD Mapping'!$B42","v":"Pollution - Pollution of water"},{"$f":"'CSRD Mapping'!$B43","v":"Pollution - Substances of concern"},{"$f":"'CSRD Mapping'!$B44","v":"Pollution - Substances of very high concern"},{"$f":"'CSRD Mapping'!$B45","v":"Water and marine resources - Direct impact drivers of biodiversity loss"},{"$f":"'CSRD Mapping'!$B46","v":"Water and marine resources - Marine resources"},{"$f":"'CSRD Mapping'!$B47","v":"Water and marine resources - Water"},{"$f":"'CSRD Mapping'!$B48","v":"Workers in the Value Chain - Equal treatment and opportunities for all"},{"$f":"'CSRD Mapping'!$B49","v":"Workers in the Value Chain - Working conditions (overall)"}]
[{"$f":"'Enter Company Names'!J15","v":"Tesla Motors, Inc."},{"$f":"SUMPRODUCT('CSRHub Ratings'!$C15:$N15,'CSRD Mapping'!$C$15:$N$15)","v":50.045999999999999},{"$f":"SUMPRODUCT('CSRHub Ratings'!$C15:$N15,'CSRD Mapping'!$C$16:$N$16)","v":50.033999999999999},{"$f":"SUMPRODUCT('CSRHub Ratings'!$C15:$N15,'CSRD Mapping'!$C$17:$N$17)","v":50.033999999999999},{"$f":"SUMPRODUCT('CSRHub Ratings'!$C15:$N15,'CSRD Mapping'!$C$18:$N$18)","v":48.868000000000009},{"$f":"SUMPRODUCT('CSRHub Ratings'!$C15:$N15,'CSRD Mapping'!$C$19:$N$19)","v":48.868000000000009},{"$f":"SUMPRODUCT('CSRHub Ratings'!$C15:$N15,'CSRD Mapping'!$C$20:$N$20)","v":48.868000000000009},{"$f":"SUMPRODUCT('CSRHub Ratings'!$C15:$N15,'CSRD Mapping'!$C$21:$N$21)","v":47.81},{"$f":"SUMPRODUCT('CSRHub Ratings'!$C15:$N15,'CSRD Mapping'!$C$22:$N$22)","v":46.412499999999994},{"$f":"SUMPRODUCT('CSRHub Ratings'!$C15:$N15,'CSRD Mapping'!$C$23:$N$23)","v":46.724999999999994},{"$f":"SUMPRODUCT('CSRHub Ratings'!$C15:$N15,'CSRD Mapping'!$C$24:$N$24)","v":48.6},{"$f":"SUMPRODUCT('CSRHub Ratings'!$C15:$N15,'CSRD Mapping'!$C$25:$N$25)","v":45.841000000000001},{"$f":"SUMPRODUCT('CSRHub Ratings'!$C15:$N15,'CSRD Mapping'!$C$26:$N$26)","v":47.984999999999999},{"$f":"SUMPRODUCT('CSRHub Ratings'!$C15:$N15,'CSRD Mapping'!$C$27:$N$27)","v":49.875999999999998},{"$f":"SUMPRODUCT('CSRHub Ratings'!$C15:$N15,'CSRD Mapping'!$C$28:$N$28)","v":49.728000000000002},{"$f":"SUMPRODUCT('CSRHub Ratings'!$C15:$N15,'CSRD Mapping'!$C$29:$N$29)","v":49.728000000000002},{"$f":"SUMPRODUCT('CSRHub Ratings'!$C15:$N15,'CSRD Mapping'!$C$30:$N$30)","v":52.488},{"$f":"SUMPRODUCT('CSRHub Ratings'!$C15:$N15,'CSRD Mapping'!$C$31:$N$31)","v":52.488},{"$f":"SUMPRODUCT('CSRHub Ratings'!$C15:$N15,'CSRD Mapping'!$C$32:$N$32)","v":52.488},{"$f":"SUMPRODUCT('CSRHub Ratings'!$C15:$N15,'CSRD Mapping'!$C$33:$N$33)","v":48.033999999999999},{"$f":"SUMPRODUCT('CSRHub Ratings'!$C15:$N15,'CSRD Mapping'!$C$34:$N$34)","v":47.997999999999998},{"$f":"SUMPRODUCT('CSRHub Ratings'!$C15:$N15,'CSRD Mapping'!$C$35:$N$35)","v":49.832000000000008},{"$f":"SUMPRODUCT('CSRHub Ratings'!$C15:$N15,'CSRD Mapping'!$C$36:$N$36)","v":47.915999999999997},{"$f":"SUMPRODUCT('CSRHub Ratings'!$C15:$N15,'CSRD Mapping'!$C$37:$N$37)","v":44.352000000000004},{"$f":"SUMPRODUCT('CSRHub Ratings'!$C15:$N15,'CSRD Mapping'!$C$38:$N$38)","v":48.881999999999998},{"$f":"SUMPRODUCT('CSRHub Ratings'!$C15:$N15,'CSRD Mapping'!$C$39:$N$39)","v":50.789000000000001},{"$f":"SUMPRODUCT('CSRHub Ratings'!$C15:$N15,'CSRD Mapping'!$C$40:$N$40)","v":48.881999999999998},{"$f":"SUMPRODUCT('CSRHub Ratings'!$C15:$N15,'CSRD Mapping'!$C$41:$N$41)","v":48.875},{"$f":"SUMPRODUCT('CSRHub Ratings'!$C15:$N15,'CSRD Mapping'!$C$42:$N$42)","v":48.875},{"$f":"SUMPRODUCT('CSRHub Ratings'!$C15:$N15,'CSRD Mapping'!$C$43:$N$43)","v":48.875},{"$f":"SUMPRODUCT('CSRHub Ratings'!$C15:$N15,'CSRD Mapping'!$C$44:$N$44)","v":48.875},{"$f":"SUMPRODUCT('CSRHub Ratings'!$C15:$N15,'CSRD Mapping'!$C$45:$N$45)","v":48.875},{"$f":"SUMPRODUCT('CSRHub Ratings'!$C15:$N15,'CSRD Mapping'!$C$46:$N$46)","v":48.875},{"$f":"SUMPRODUCT('CSRHub Ratings'!$C15:$N15,'CSRD Mapping'!$C$47:$N$47)","v":48.875},{"$f":"SUMPRODUCT('CSRHub Ratings'!$C15:$N15,'CSRD Mapping'!$C$48:$N$48)","v":46.633000000000003},{"$f":"SUMPRODUCT('CSRHub Ratings'!$C15:$N15,'CSRD Mapping'!$C$49:$N$49)","v":46.989999999999995}]
[{"$f":"'Enter Company Names'!J16","v":"Porsche AG"},{"$f":"SUMPRODUCT('CSRHub Ratings'!$C16:$N16,'CSRD Mapping'!$C$15:$N$15)","v":54.619},{"$f":"SUMPRODUCT('CSRHub Ratings'!$C16:$N16,'CSRD Mapping'!$C$16:$N$16)","v":54.344999999999999},{"$f":"SUMPRODUCT('CSRHub Ratings'!$C16:$N16,'CSRD Mapping'!$C$17:$N$17)","v":54.344999999999999},{"$f":"SUMPRODUCT('CSRHub Ratings'!$C16:$N16,'CSRD Mapping'!$C$18:$N$18)","v":51.632000000000005},{"$f":"SUMPRODUCT('CSRHub Ratings'!$C16:$N16,'CSRD Mapping'!$C$19:$N$19)","v":51.632000000000005},{"$f":"SUMPRODUCT('CSRHub Ratings'!$C16:$N16,'CSRD Mapping'!$C$20:$N$20)","v":51.632000000000005},{"$f":"SUMPRODUCT('CSRHub Ratings'!$C16:$N16,'CSRD Mapping'!$C$21:$N$21)","v":51.063000000000002},{"$f":"SUMPRODUCT('CSRHub Ratings'!$C16:$N16,'CSRD Mapping'!$C$22:$N$22)","v":50.641500000000001},{"$f":"SUMPRODUCT('CSRHub Ratings'!$C16:$N16,'CSRD Mapping'!$C$23:$N$23)","v":50.504999999999995},{"$f":"SUMPRODUCT('CSRHub Ratings'!$C16:$N16,'CSRD Mapping'!$C$24:$N$24)","v":53.545999999999999},{"$f":"SUMPRODUCT('CSRHub Ratings'!$C16:$N16,'CSRD Mapping'!$C$25:$N$25)","v":50.363},{"$f":"SUMPRODUCT('CSRHub Ratings'!$C16:$N16,'CSRD Mapping'!$C$26:$N$26)","v":50.957000000000001},{"$f":"SUMPRODUCT('CSRHub Ratings'!$C16:$N16,'CSRD Mapping'!$C$27:$N$27)","v":51.421999999999997},{"$f":"SUMPRODUCT('CSRHub Ratings'!$C16:$N16,'CSRD Mapping'!$C$28:$N$28)","v":51.444000000000003},{"$f":"SUMPRODUCT('CSRHub Ratings'!$C16:$N16,'CSRD Mapping'!$C$29:$N$29)","v":51.444000000000003},{"$f":"SUMPRODUCT('CSRHub Ratings'!$C16:$N16,'CSRD Mapping'!$C$30:$N$30)","v":50.224000000000004},{"$f":"SUMPRODUCT('CSRHub Ratings'!$C16:$N16,'CSRD Mapping'!$C$31:$N$31)","v":50.224000000000004},{"$f":"SUMPRODUCT('CSRHub Ratings'!$C16:$N16,'CSRD Mapping'!$C$32:$N$32)","v":50.224000000000004},{"$f":"SUMPRODUCT('CSRHub Ratings'!$C16:$N16,'CSRD Mapping'!$C$33:$N$33)","v":51.287000000000006},{"$f":"SUMPRODUCT('CSRHub Ratings'!$C16:$N16,'CSRD Mapping'!$C$34:$N$34)","v":51.637},{"$f":"SUMPRODUCT('CSRHub Ratings'!$C16:$N16,'CSRD Mapping'!$C$35:$N$35)","v":53.688000000000002},{"$f":"SUMPRODUCT('CSRHub Ratings'!$C16:$N16,'CSRD Mapping'!$C$36:$N$36)","v":55.258000000000003},{"$f":"SUMPRODUCT('CSRHub Ratings'!$C16:$N16,'CSRD Mapping'!$C$37:$N$37)","v":51.933999999999997},{"$f":"SUMPRODUCT('CSRHub Ratings'!$C16:$N16,'CSRD Mapping'!$C$38:$N$38)","v":51.660000000000004},{"$f":"SUMPRODUCT('CSRHub Ratings'!$C16:$N16,'CSRD Mapping'!$C$39:$N$39)","v":50.873000000000005},{"$f":"SUMPRODUCT('CSRHub Ratings'!$C16:$N16,'CSRD Mapping'!$C$40:$N$40)","v":51.660000000000004},{"$f":"SUMPRODUCT('CSRHub Ratings'!$C16:$N16,'CSRD Mapping'!$C$41:$N$41)","v":51.646000000000001},{"$f":"SUMPRODUCT('CSRHub Ratings'!$C16:$N16,'CSRD Mapping'!$C$42:$N$42)","v":51.646000000000001},{"$f":"SUMPRODUCT('CSRHub Ratings'!$C16:$N16,'CSRD Mapping'!$C$43:$N$43)","v":51.646000000000001},{"$f":"SUMPRODUCT('CSRHub Ratings'!$C16:$N16,'CSRD Mapping'!$C$44:$N$44)","v":51.646000000000001},{"$f":"SUMPRODUCT('CSRHub Ratings'!$C16:$N16,'CSRD Mapping'!$C$45:$N$45)","v":51.646000000000001},{"$f":"SUMPRODUCT('CSRHub Ratings'!$C16:$N16,'CSRD Mapping'!$C$46:$N$46)","v":51.646000000000001},{"$f":"SUMPRODUCT('CSRHub Ratings'!$C16:$N16,'CSRD Mapping'!$C$47:$N$47)","v":51.646000000000001},{"$f":"SUMPRODUCT('CSRHub Ratings'!$C16:$N16,'CSRD Mapping'!$C$48:$N$48)","v":53.572000000000003},{"$f":"SUMPRODUCT('CSRHub Ratings'!$C16:$N16,'CSRD Mapping'!$C$49:$N$49)","v":53.344999999999999}]
[{"$f":"'Enter Company Names'!J17","v":"Volkswagen AG"},{"$f":"SUMPRODUCT('CSRHub Ratings'!$C17:$N17,'CSRD Mapping'!$C$15:$N$15)","v":55.454999999999991},{"$f":"SUMPRODUCT('CSRHub Ratings'!$C17:$N17,'CSRD Mapping'!$C$16:$N$16)","v":55.034999999999997},{"$f":"SUMPRODUCT('CSRHub Ratings'!$C17:$N17,'CSRD Mapping'!$C$17:$N$17)","v":55.034999999999997},{"$f":"SUMPRODUCT('CSRHub Ratings'!$C17:$N17,'CSRD Mapping'!$C$18:$N$18)","v":61.025999999999996},{"$f":"SUMPRODUCT('CSRHub Ratings'!$C17:$N17,'CSRD Mapping'!$C$19:$N$19)","v":61.025999999999996},{"$f":"SUMPRODUCT('CSRHub Ratings'!$C17:$N17,'CSRD Mapping'!$C$20:$N$20)","v":61.025999999999996},{"$f":"SUMPRODUCT('CSRHub Ratings'!$C17:$N17,'CSRD Mapping'!$C$21:$N$21)","v":50.558999999999997},{"$f":"SUMPRODUCT('CSRHub Ratings'!$C17:$N17,'CSRD Mapping'!$C$22:$N$22)","v":49.863500000000002},{"$f":"SUMPRODUCT('CSRHub Ratings'!$C17:$N17,'CSRD Mapping'!$C$23:$N$23)","v":49.634999999999998},{"$f":"SUMPRODUCT('CSRHub Ratings'!$C17:$N17,'CSRD Mapping'!$C$24:$N$24)","v":53.879999999999995},{"$f":"SUMPRODUCT('CSRHub Ratings'!$C17:$N17,'CSRD Mapping'!$C$25:$N$25)","v":49.283999999999999},{"$f":"SUMPRODUCT('CSRHub Ratings'!$C17:$N17,'CSRD Mapping'!$C$26:$N$26)","v":50.366999999999997},{"$f":"SUMPRODUCT('CSRHub Ratings'!$C17:$N17,'CSRD Mapping'!$C$27:$N$27)","v":60.252000000000002},{"$f":"SUMPRODUCT('CSRHub Ratings'!$C17:$N17,'CSRD Mapping'!$C$28:$N$28)","v":60.656000000000006},{"$f":"SUMPRODUCT('CSRHub Ratings'!$C17:$N17,'CSRD Mapping'!$C$29:$N$29)","v":60.656000000000006},{"$f":"SUMPRODUCT('CSRHub Ratings'!$C17:$N17,'CSRD Mapping'!$C$30:$N$30)","v":58.591000000000001},{"$f":"SUMPRODUCT('CSRHub Ratings'!$C17:$N17,'CSRD Mapping'!$C$31:$N$31)","v":58.591000000000001},{"$f":"SUMPRODUCT('CSRHub Ratings'!$C17:$N17,'CSRD Mapping'!$C$32:$N$32)","v":58.591000000000001},{"$f":"SUMPRODUCT('CSRHub Ratings'!$C17:$N17,'CSRD Mapping'!$C$33:$N$33)","v":53.332999999999998},{"$f":"SUMPRODUCT('CSRHub Ratings'!$C17:$N17,'CSRD Mapping'!$C$34:$N$34)","v":53.375},{"$f":"SUMPRODUCT('CSRHub Ratings'!$C17:$N17,'CSRD Mapping'!$C$35:$N$35)","v":56.044000000000004},{"$f":"SUMPRODUCT('CSRHub Ratings'!$C17:$N17,'CSRD Mapping'!$C$36:$N$36)","v":55.703999999999994},{"$f":"SUMPRODUCT('CSRHub Ratings'!$C17:$N17,'CSRD Mapping'!$C$37:$N$37)","v":51.29},{"$f":"SUMPRODUCT('CSRHub Ratings'!$C17:$N17,'CSRD Mapping'!$C$38:$N$38)","v":59.998999999999995},{"$f":"SUMPRODUCT('CSRHub Ratings'!$C17:$N17,'CSRD Mapping'!$C$39:$N$39)","v":59.2605},{"$f":"SUMPRODUCT('CSRHub Ratings'!$C17:$N17,'CSRD Mapping'!$C$40:$N$40)","v":59.998999999999995},{"$f":"SUMPRODUCT('CSRHub Ratings'!$C17:$N17,'CSRD Mapping'!$C$41:$N$41)","v":60.512500000000003},{"$f":"SUMPRODUCT('CSRHub Ratings'!$C17:$N17,'CSRD Mapping'!$C$42:$N$42)","v":60.512500000000003},{"$f":"SUMPRODUCT('CSRHub Ratings'!$C17:$N17,'CSRD Mapping'!$C$43:$N$43)","v":60.512500000000003},{"$f":"SUMPRODUCT('CSRHub Ratings'!$C17:$N17,'CSRD Mapping'!$C$44:$N$44)","v":60.512500000000003},{"$f":"SUMPRODUCT('CSRHub Ratings'!$C17:$N17,'CSRD Mapping'!$C$45:$N$45)","v":60.512500000000003},{"$f":"SUMPRODUCT('CSRHub Ratings'!$C17:$N17,'CSRD Mapping'!$C$46:$N$46)","v":60.512500000000003},{"$f":"SUMPRODUCT('CSRHub Ratings'!$C17:$N17,'CSRD Mapping'!$C$47:$N$47)","v":60.512500000000003},{"$f":"SUMPRODUCT('CSRHub Ratings'!$C17:$N17,'CSRD Mapping'!$C$48:$N$48)","v":53.783999999999999},{"$f":"SUMPRODUCT('CSRHub Ratings'!$C17:$N17,'CSRD Mapping'!$C$49:$N$49)","v":54.243000000000002}]
[{"$f":"'Enter Company Names'!J18","v":"Rivian Automotive Inc"},{"$f":"SUMPRODUCT('CSRHub Ratings'!$C18:$N18,'CSRD Mapping'!$C$15:$N$15)","v":51.123999999999995},{"$f":"SUMPRODUCT('CSRHub Ratings'!$C18:$N18,'CSRD Mapping'!$C$16:$N$16)","v":50.819000000000003},{"$f":"SUMPRODUCT('CSRHub Ratings'!$C18:$N18,'CSRD Mapping'!$C$17:$N$17)","v":50.819000000000003},{"$f":"SUMPRODUCT('CSRHub Ratings'!$C18:$N18,'CSRD Mapping'!$C$18:$N$18)","v":46.275999999999996},{"$f":"SUMPRODUCT('CSRHub Ratings'!$C18:$N18,'CSRD Mapping'!$C$19:$N$19)","v":46.275999999999996},{"$f":"SUMPRODUCT('CSRHub Ratings'!$C18:$N18,'CSRD Mapping'!$C$20:$N$20)","v":46.275999999999996},{"$f":"SUMPRODUCT('CSRHub Ratings'!$C18:$N18,'CSRD Mapping'!$C$21:$N$21)","v":51.309000000000005},{"$f":"SUMPRODUCT('CSRHub Ratings'!$C18:$N18,'CSRD Mapping'!$C$22:$N$22)","v":50.489000000000004},{"$f":"SUMPRODUCT('CSRHub Ratings'!$C18:$N18,'CSRD Mapping'!$C$23:$N$23)","v":51.230000000000004},{"$f":"SUMPRODUCT('CSRHub Ratings'!$C18:$N18,'CSRD Mapping'!$C$24:$N$24)","v":52.370000000000005},{"$f":"SUMPRODUCT('CSRHub Ratings'!$C18:$N18,'CSRD Mapping'!$C$25:$N$25)","v":50.711999999999996},{"$f":"SUMPRODUCT('CSRHub Ratings'!$C18:$N18,'CSRD Mapping'!$C$26:$N$26)","v":52.062000000000005},{"$f":"SUMPRODUCT('CSRHub Ratings'!$C18:$N18,'CSRD Mapping'!$C$27:$N$27)","v":46.384999999999998},{"$f":"SUMPRODUCT('CSRHub Ratings'!$C18:$N18,'CSRD Mapping'!$C$28:$N$28)","v":46.108000000000004},{"$f":"SUMPRODUCT('CSRHub Ratings'!$C18:$N18,'CSRD Mapping'!$C$29:$N$29)","v":46.108000000000004},{"$f":"SUMPRODUCT('CSRHub Ratings'!$C18:$N18,'CSRD Mapping'!$C$30:$N$30)","v":52.265999999999991},{"$f":"SUMPRODUCT('CSRHub Ratings'!$C18:$N18,'CSRD Mapping'!$C$31:$N$31)","v":52.265999999999991},{"$f":"SUMPRODUCT('CSRHub Ratings'!$C18:$N18,'CSRD Mapping'!$C$32:$N$32)","v":52.265999999999991},{"$f":"SUMPRODUCT('CSRHub Ratings'!$C18:$N18,'CSRD Mapping'!$C$33:$N$33)","v":49.56},{"$f":"SUMPRODUCT('CSRHub Ratings'!$C18:$N18,'CSRD Mapping'!$C$34:$N$34)","v":51.073999999999998},{"$f":"SUMPRODUCT('CSRHub Ratings'!$C18:$N18,'CSRD Mapping'!$C$35:$N$35)","v":50.794000000000004},{"$f":"SUMPRODUCT('CSRHub Ratings'!$C18:$N18,'CSRD Mapping'!$C$36:$N$36)","v":49.942},{"$f":"SUMPRODUCT('CSRHub Ratings'!$C18:$N18,'CSRD Mapping'!$C$37:$N$37)","v":44.388000000000005},{"$f":"SUMPRODUCT('CSRHub Ratings'!$C18:$N18,'CSRD Mapping'!$C$38:$N$38)","v":47.190999999999995},{"$f":"SUMPRODUCT('CSRHub Ratings'!$C18:$N18,'CSRD Mapping'!$C$39:$N$39)","v":50.121000000000002},{"$f":"SUMPRODUCT('CSRHub Ratings'!$C18:$N18,'CSRD Mapping'!$C$40:$N$40)","v":47.190999999999995},{"$f":"SUMPRODUCT('CSRHub Ratings'!$C18:$N18,'CSRD Mapping'!$C$41:$N$41)","v":46.733499999999999},{"$f":"SUMPRODUCT('CSRHub Ratings'!$C18:$N18,'CSRD Mapping'!$C$42:$N$42)","v":46.733499999999999},{"$f":"SUMPRODUCT('CSRHub Ratings'!$C18:$N18,'CSRD Mapping'!$C$43:$N$43)","v":46.733499999999999},{"$f":"SUMPRODUCT('CSRHub Ratings'!$C18:$N18,'CSRD Mapping'!$C$44:$N$44)","v":46.733499999999999},{"$f":"SUMPRODUCT('CSRHub Ratings'!$C18:$N18,'CSRD Mapping'!$C$45:$N$45)","v":46.733499999999999},{"$f":"SUMPRODUCT('CSRHub Ratings'!$C18:$N18,'CSRD Mapping'!$C$46:$N$46)","v":46.733499999999999},{"$f":"SUMPRODUCT('CSRHub Ratings'!$C18:$N18,'CSRD Mapping'!$C$47:$N$47)","v":46.733499999999999},{"$f":"SUMPRODUCT('CSRHub Ratings'!$C18:$N18,'CSRD Mapping'!$C$48:$N$48)","v":47.462499999999991},{"$f":"SUMPRODUCT('CSRHub Ratings'!$C18:$N18,'CSRD Mapping'!$C$49:$N$49)","v":47.462000000000003}]
[{"$f":"'Enter Company Names'!J19","v":"Polestar Automotive Holding UK Plc"},{"$f":"SUMPRODUCT('CSRHub Ratings'!$C19:$N19,'CSRD Mapping'!$C$15:$N$15)","v":50.097000000000001},{"$f":"SUMPRODUCT('CSRHub Ratings'!$C19:$N19,'CSRD Mapping'!$C$16:$N$16)","v":49.155999999999999},{"$f":"SUMPRODUCT('CSRHub Ratings'!$C19:$N19,'CSRD Mapping'!$C$17:$N$17)","v":49.155999999999999},{"$f":"SUMPRODUCT('CSRHub Ratings'!$C19:$N19,'CSRD Mapping'!$C$18:$N$18)","v":48},{"$f":"SUMPRODUCT('CSRHub Ratings'!$C19:$N19,'CSRD Mapping'!$C$19:$N$19)","v":48},{"$f":"SUMPRODUCT('CSRHub Ratings'!$C19:$N19,'CSRD Mapping'!$C$20:$N$20)","v":48},{"$f":"SUMPRODUCT('CSRHub Ratings'!$C19:$N19,'CSRD Mapping'!$C$21:$N$21)","v":54.491},{"$f":"SUMPRODUCT('CSRHub Ratings'!$C19:$N19,'CSRD Mapping'!$C$22:$N$22)","v":51.223500000000001},{"$f":"SUMPRODUCT('CSRHub Ratings'!$C19:$N19,'CSRD Mapping'!$C$23:$N$23)","v":51.445},{"$f":"SUMPRODUCT('CSRHub Ratings'!$C19:$N19,'CSRD Mapping'!$C$24:$N$24)","v":55.392000000000003},{"$f":"SUMPRODUCT('CSRHub Ratings'!$C19:$N19,'CSRD Mapping'!$C$25:$N$25)","v":50.080999999999989},{"$f":"SUMPRODUCT('CSRHub Ratings'!$C19:$N19,'CSRD Mapping'!$C$26:$N$26)","v":54.256999999999998},{"$f":"SUMPRODUCT('CSRHub Ratings'!$C19:$N19,'CSRD Mapping'!$C$27:$N$27)","v":49.558},{"$f":"SUMPRODUCT('CSRHub Ratings'!$C19:$N19,'CSRD Mapping'!$C$28:$N$28)","v":48.981999999999999},{"$f":"SUMPRODUCT('CSRHub Ratings'!$C19:$N19,'CSRD Mapping'!$C$29:$N$29)","v":48.981999999999999},{"$f":"SUMPRODUCT('CSRHub Ratings'!$C19:$N19,'CSRD Mapping'!$C$30:$N$30)","v":49.13},{"$f":"SUMPRODUCT('CSRHub Ratings'!$C19:$N19,'CSRD Mapping'!$C$31:$N$31)","v":49.13},{"$f":"SUMPRODUCT('CSRHub Ratings'!$C19:$N19,'CSRD Mapping'!$C$32:$N$32)","v":49.13},{"$f":"SUMPRODUCT('CSRHub Ratings'!$C19:$N19,'CSRD Mapping'!$C$33:$N$33)","v":53.55},{"$f":"SUMPRODUCT('CSRHub Ratings'!$C19:$N19,'CSRD Mapping'!$C$34:$N$34)","v":54.656000000000006},{"$f":"SUMPRODUCT('CSRHub Ratings'!$C19:$N19,'CSRD Mapping'!$C$35:$N$35)","v":51.374000000000002},{"$f":"SUMPRODUCT('CSRHub Ratings'!$C19:$N19,'CSRD Mapping'!$C$36:$N$36)","v":52.831999999999994},{"$f":"SUMPRODUCT('CSRHub Ratings'!$C19:$N19,'CSRD Mapping'!$C$37:$N$37)","v":48.995999999999995},{"$f":"SUMPRODUCT('CSRHub Ratings'!$C19:$N19,'CSRD Mapping'!$C$38:$N$38)","v":49.237000000000002},{"$f":"SUMPRODUCT('CSRHub Ratings'!$C19:$N19,'CSRD Mapping'!$C$39:$N$39)","v":49.000500000000009},{"$f":"SUMPRODUCT('CSRHub Ratings'!$C19:$N19,'CSRD Mapping'!$C$40:$N$40)","v":49.237000000000002},{"$f":"SUMPRODUCT('CSRHub Ratings'!$C19:$N19,'CSRD Mapping'!$C$41:$N$41)","v":48.618500000000004},{"$f":"SUMPRODUCT('CSRHub Ratings'!$C19:$N19,'CSRD Mapping'!$C$42:$N$42)","v":48.618500000000004},{"$f":"SUMPRODUCT('CSRHub Ratings'!$C19:$N19,'CSRD Mapping'!$C$43:$N$43)","v":48.618500000000004},{"$f":"SUMPRODUCT('CSRHub Ratings'!$C19:$N19,'CSRD Mapping'!$C$44:$N$44)","v":48.618500000000004},{"$f":"SUMPRODUCT('CSRHub Ratings'!$C19:$N19,'CSRD Mapping'!$C$45:$N$45)","v":48.618500000000004},{"$f":"SUMPRODUCT('CSRHub Ratings'!$C19:$N19,'CSRD Mapping'!$C$46:$N$46)","v":48.618500000000004},{"$f":"SUMPRODUCT('CSRHub Ratings'!$C19:$N19,'CSRD Mapping'!$C$47:$N$47)","v":48.618500000000004},{"$f":"SUMPRODUCT('CSRHub Ratings'!$C19:$N19,'CSRD Mapping'!$C$48:$N$48)","v":51.395499999999998},{"$f":"SUMPRODUCT('CSRHub Ratings'!$C19:$N19,'CSRD Mapping'!$C$49:$N$49)","v":52.055999999999997}]
[{"$f":"'Enter Company Names'!J20","v":"Ford Motor Company"},{"$f":"SUMPRODUCT('CSRHub Ratings'!$C20:$N20,'CSRD Mapping'!$C$15:$N$15)","v":59.209000000000003},{"$f":"SUMPRODUCT('CSRHub Ratings'!$C20:$N20,'CSRD Mapping'!$C$16:$N$16)","v":58.736000000000004},{"$f":"SUMPRODUCT('CSRHub Ratings'!$C20:$N20,'CSRD Mapping'!$C$17:$N$17)","v":58.736000000000004},{"$f":"SUMPRODUCT('CSRHub Ratings'!$C20:$N20,'CSRD Mapping'!$C$18:$N$18)","v":65.652000000000001},{"$f":"SUMPRODUCT('CSRHub Ratings'!$C20:$N20,'CSRD Mapping'!$C$19:$N$19)","v":65.652000000000001},{"$f":"SUMPRODUCT('CSRHub Ratings'!$C20:$N20,'CSRD Mapping'!$C$20:$N$20)","v":65.652000000000001},{"$f":"SUMPRODUCT('CSRHub Ratings'!$C20:$N20,'CSRD Mapping'!$C$21:$N$21)","v":55.673999999999999},{"$f":"SUMPRODUCT('CSRHub Ratings'!$C20:$N20,'CSRD Mapping'!$C$22:$N$22)","v":56.411000000000001},{"$f":"SUMPRODUCT('CSRHub Ratings'!$C20:$N20,'CSRD Mapping'!$C$23:$N$23)","v":56.46},{"$f":"SUMPRODUCT('CSRHub Ratings'!$C20:$N20,'CSRD Mapping'!$C$24:$N$24)","v":59.012},{"$f":"SUMPRODUCT('CSRHub Ratings'!$C20:$N20,'CSRD Mapping'!$C$25:$N$25)","v":56.934999999999995},{"$f":"SUMPRODUCT('CSRHub Ratings'!$C20:$N20,'CSRD Mapping'!$C$26:$N$26)","v":55.940000000000005},{"$f":"SUMPRODUCT('CSRHub Ratings'!$C20:$N20,'CSRD Mapping'!$C$27:$N$27)","v":62.337000000000003},{"$f":"SUMPRODUCT('CSRHub Ratings'!$C20:$N20,'CSRD Mapping'!$C$28:$N$28)","v":63.494000000000007},{"$f":"SUMPRODUCT('CSRHub Ratings'!$C20:$N20,'CSRD Mapping'!$C$29:$N$29)","v":63.494000000000007},{"$f":"SUMPRODUCT('CSRHub Ratings'!$C20:$N20,'CSRD Mapping'!$C$30:$N$30)","v":63.038000000000004},{"$f":"SUMPRODUCT('CSRHub Ratings'!$C20:$N20,'CSRD Mapping'!$C$31:$N$31)","v":63.038000000000004},{"$f":"SUMPRODUCT('CSRHub Ratings'!$C20:$N20,'CSRD Mapping'!$C$32:$N$32)","v":63.038000000000004},{"$f":"SUMPRODUCT('CSRHub Ratings'!$C20:$N20,'CSRD Mapping'!$C$33:$N$33)","v":54.302999999999997},{"$f":"SUMPRODUCT('CSRHub Ratings'!$C20:$N20,'CSRD Mapping'!$C$34:$N$34)","v":55.435000000000002},{"$f":"SUMPRODUCT('CSRHub Ratings'!$C20:$N20,'CSRD Mapping'!$C$35:$N$35)","v":57.260000000000005},{"$f":"SUMPRODUCT('CSRHub Ratings'!$C20:$N20,'CSRD Mapping'!$C$36:$N$36)","v":59.868000000000002},{"$f":"SUMPRODUCT('CSRHub Ratings'!$C20:$N20,'CSRD Mapping'!$C$37:$N$37)","v":55.072000000000003},{"$f":"SUMPRODUCT('CSRHub Ratings'!$C20:$N20,'CSRD Mapping'!$C$38:$N$38)","v":63.260000000000005},{"$f":"SUMPRODUCT('CSRHub Ratings'!$C20:$N20,'CSRD Mapping'!$C$39:$N$39)","v":63.518500000000003},{"$f":"SUMPRODUCT('CSRHub Ratings'!$C20:$N20,'CSRD Mapping'!$C$40:$N$40)","v":63.260000000000005},{"$f":"SUMPRODUCT('CSRHub Ratings'!$C20:$N20,'CSRD Mapping'!$C$41:$N$41)","v":64.456000000000003},{"$f":"SUMPRODUCT('CSRHub Ratings'!$C20:$N20,'CSRD Mapping'!$C$42:$N$42)","v":64.456000000000003},{"$f":"SUMPRODUCT('CSRHub Ratings'!$C20:$N20,'CSRD Mapping'!$C$43:$N$43)","v":64.456000000000003},{"$f":"SUMPRODUCT('CSRHub Ratings'!$C20:$N20,'CSRD Mapping'!$C$44:$N$44)","v":64.456000000000003},{"$f":"SUMPRODUCT('CSRHub Ratings'!$C20:$N20,'CSRD Mapping'!$C$45:$N$45)","v":64.456000000000003},{"$f":"SUMPRODUCT('CSRHub Ratings'!$C20:$N20,'CSRD Mapping'!$C$46:$N$46)","v":64.456000000000003},{"$f":"SUMPRODUCT('CSRHub Ratings'!$C20:$N20,'CSRD Mapping'!$C$47:$N$47)","v":64.456000000000003},{"$f":"SUMPRODUCT('CSRHub Ratings'!$C20:$N20,'CSRD Mapping'!$C$48:$N$48)","v":57.482499999999995},{"$f":"SUMPRODUCT('CSRHub Ratings'!$C20:$N20,'CSRD Mapping'!$C$49:$N$49)","v":57.576999999999998}]
[{"$f":"'Enter Company Names'!J21","v":"Hyundai Motor Co."},{"$f":"SUMPRODUCT('CSRHub Ratings'!$C21:$N21,'CSRD Mapping'!$C$15:$N$15)","v":58.774000000000008},{"$f":"SUMPRODUCT('CSRHub Ratings'!$C21:$N21,'CSRD Mapping'!$C$16:$N$16)","v":58.250000000000007},{"$f":"SUMPRODUCT('CSRHub Ratings'!$C21:$N21,'CSRD Mapping'!$C$17:$N$17)","v":58.250000000000007},{"$f":"SUMPRODUCT('CSRHub Ratings'!$C21:$N21,'CSRD Mapping'!$C$18:$N$18)","v":65.513999999999996},{"$f":"SUMPRODUCT('CSRHub Ratings'!$C21:$N21,'CSRD Mapping'!$C$19:$N$19)","v":65.513999999999996},{"$f":"SUMPRODUCT('CSRHub Ratings'!$C21:$N21,'CSRD Mapping'!$C$20:$N$20)","v":65.513999999999996},{"$f":"SUMPRODUCT('CSRHub Ratings'!$C21:$N21,'CSRD Mapping'!$C$21:$N$21)","v":54.221000000000004},{"$f":"SUMPRODUCT('CSRHub Ratings'!$C21:$N21,'CSRD Mapping'!$C$22:$N$22)","v":54.638500000000001},{"$f":"SUMPRODUCT('CSRHub Ratings'!$C21:$N21,'CSRD Mapping'!$C$23:$N$23)","v":54.245000000000005},{"$f":"SUMPRODUCT('CSRHub Ratings'!$C21:$N21,'CSRD Mapping'!$C$24:$N$24)","v":57.933999999999997},{"$f":"SUMPRODUCT('CSRHub Ratings'!$C21:$N21,'CSRD Mapping'!$C$25:$N$25)","v":54.746999999999993},{"$f":"SUMPRODUCT('CSRHub Ratings'!$C21:$N21,'CSRD Mapping'!$C$26:$N$26)","v":53.817},{"$f":"SUMPRODUCT('CSRHub Ratings'!$C21:$N21,'CSRD Mapping'!$C$27:$N$27)","v":64.037999999999997},{"$f":"SUMPRODUCT('CSRHub Ratings'!$C21:$N21,'CSRD Mapping'!$C$28:$N$28)","v":64.653999999999996},{"$f":"SUMPRODUCT('CSRHub Ratings'!$C21:$N21,'CSRD Mapping'!$C$29:$N$29)","v":64.653999999999996},{"$f":"SUMPRODUCT('CSRHub Ratings'!$C21:$N21,'CSRD Mapping'!$C$30:$N$30)","v":61.203999999999994},{"$f":"SUMPRODUCT('CSRHub Ratings'!$C21:$N21,'CSRD Mapping'!$C$31:$N$31)","v":61.203999999999994},{"$f":"SUMPRODUCT('CSRHub Ratings'!$C21:$N21,'CSRD Mapping'!$C$32:$N$32)","v":61.203999999999994},{"$f":"SUMPRODUCT('CSRHub Ratings'!$C21:$N21,'CSRD Mapping'!$C$33:$N$33)","v":56.893999999999998},{"$f":"SUMPRODUCT('CSRHub Ratings'!$C21:$N21,'CSRD Mapping'!$C$34:$N$34)","v":57.024000000000001},{"$f":"SUMPRODUCT('CSRHub Ratings'!$C21:$N21,'CSRD Mapping'!$C$35:$N$35)","v":59.046000000000006},{"$f":"SUMPRODUCT('CSRHub Ratings'!$C21:$N21,'CSRD Mapping'!$C$36:$N$36)","v":60.742000000000004},{"$f":"SUMPRODUCT('CSRHub Ratings'!$C21:$N21,'CSRD Mapping'!$C$37:$N$37)","v":57.504000000000005},{"$f":"SUMPRODUCT('CSRHub Ratings'!$C21:$N21,'CSRD Mapping'!$C$38:$N$38)","v":64.096000000000004},{"$f":"SUMPRODUCT('CSRHub Ratings'!$C21:$N21,'CSRD Mapping'!$C$39:$N$39)","v":62.596999999999994},{"$f":"SUMPRODUCT('CSRHub Ratings'!$C21:$N21,'CSRD Mapping'!$C$40:$N$40)","v":64.096000000000004},{"$f":"SUMPRODUCT('CSRHub Ratings'!$C21:$N21,'CSRD Mapping'!$C$41:$N$41)","v":64.804999999999993},{"$f":"SUMPRODUCT('CSRHub Ratings'!$C21:$N21,'CSRD Mapping'!$C$42:$N$42)","v":64.804999999999993},{"$f":"SUMPRODUCT('CSRHub Ratings'!$C21:$N21,'CSRD Mapping'!$C$43:$N$43)","v":64.804999999999993},{"$f":"SUMPRODUCT('CSRHub Ratings'!$C21:$N21,'CSRD Mapping'!$C$44:$N$44)","v":64.804999999999993},{"$f":"SUMPRODUCT('CSRHub Ratings'!$C21:$N21,'CSRD Mapping'!$C$45:$N$45)","v":64.804999999999993},{"$f":"SUMPRODUCT('CSRHub Ratings'!$C21:$N21,'CSRD Mapping'!$C$46:$N$46)","v":64.804999999999993},{"$f":"SUMPRODUCT('CSRHub Ratings'!$C21:$N21,'CSRD Mapping'!$C$47:$N$47)","v":64.804999999999993},{"$f":"SUMPRODUCT('CSRHub Ratings'!$C21:$N21,'CSRD Mapping'!$C$48:$N$48)","v":59.188499999999998},{"$f":"SUMPRODUCT('CSRHub Ratings'!$C21:$N21,'CSRD Mapping'!$C$49:$N$49)","v":59.367999999999995}]
[{"$f":"'Enter Company Names'!J22","v":"Kia Motors Corporation"},{"$f":"SUMPRODUCT('CSRHub Ratings'!$C22:$N22,'CSRD Mapping'!$C$15:$N$15)","v":56.570999999999998},{"$f":"SUMPRODUCT('CSRHub Ratings'!$C22:$N22,'CSRD Mapping'!$C$16:$N$16)","v":55.935000000000002},{"$f":"SUMPRODUCT('CSRHub Ratings'!$C22:$N22,'CSRD Mapping'!$C$17:$N$17)","v":55.935000000000002},{"$f":"SUMPRODUCT('CSRHub Ratings'!$C22:$N22,'CSRD Mapping'!$C$18:$N$18)","v":64.432000000000002},{"$f":"SUMPRODUCT('CSRHub Ratings'!$C22:$N22,'CSRD Mapping'!$C$19:$N$19)","v":64.432000000000002},{"$f":"SUMPRODUCT('CSRHub Ratings'!$C22:$N22,'CSRD Mapping'!$C$20:$N$20)","v":64.432000000000002},{"$f":"SUMPRODUCT('CSRHub Ratings'!$C22:$N22,'CSRD Mapping'!$C$21:$N$21)","v":53.358000000000004},{"$f":"SUMPRODUCT('CSRHub Ratings'!$C22:$N22,'CSRD Mapping'!$C$22:$N$22)","v":54.117999999999995},{"$f":"SUMPRODUCT('CSRHub Ratings'!$C22:$N22,'CSRD Mapping'!$C$23:$N$23)","v":53.84},{"$f":"SUMPRODUCT('CSRHub Ratings'!$C22:$N22,'CSRD Mapping'!$C$24:$N$24)","v":56.75},{"$f":"SUMPRODUCT('CSRHub Ratings'!$C22:$N22,'CSRD Mapping'!$C$25:$N$25)","v":54.545000000000002},{"$f":"SUMPRODUCT('CSRHub Ratings'!$C22:$N22,'CSRD Mapping'!$C$26:$N$26)","v":53.007999999999996},{"$f":"SUMPRODUCT('CSRHub Ratings'!$C22:$N22,'CSRD Mapping'!$C$27:$N$27)","v":62.528000000000006},{"$f":"SUMPRODUCT('CSRHub Ratings'!$C22:$N22,'CSRD Mapping'!$C$28:$N$28)","v":63.218000000000004},{"$f":"SUMPRODUCT('CSRHub Ratings'!$C22:$N22,'CSRD Mapping'!$C$29:$N$29)","v":63.218000000000004},{"$f":"SUMPRODUCT('CSRHub Ratings'!$C22:$N22,'CSRD Mapping'!$C$30:$N$30)","v":59.667999999999999},{"$f":"SUMPRODUCT('CSRHub Ratings'!$C22:$N22,'CSRD Mapping'!$C$31:$N$31)","v":59.667999999999999},{"$f":"SUMPRODUCT('CSRHub Ratings'!$C22:$N22,'CSRD Mapping'!$C$32:$N$32)","v":59.667999999999999},{"$f":"SUMPRODUCT('CSRHub Ratings'!$C22:$N22,'CSRD Mapping'!$C$33:$N$33)","v":55.827000000000005},{"$f":"SUMPRODUCT('CSRHub Ratings'!$C22:$N22,'CSRD Mapping'!$C$34:$N$34)","v":55.867000000000004},{"$f":"SUMPRODUCT('CSRHub Ratings'!$C22:$N22,'CSRD Mapping'!$C$35:$N$35)","v":57.074000000000005},{"$f":"SUMPRODUCT('CSRHub Ratings'!$C22:$N22,'CSRD Mapping'!$C$36:$N$36)","v":59.341999999999999},{"$f":"SUMPRODUCT('CSRHub Ratings'!$C22:$N22,'CSRD Mapping'!$C$37:$N$37)","v":56.349999999999994},{"$f":"SUMPRODUCT('CSRHub Ratings'!$C22:$N22,'CSRD Mapping'!$C$38:$N$38)","v":62.968999999999994},{"$f":"SUMPRODUCT('CSRHub Ratings'!$C22:$N22,'CSRD Mapping'!$C$39:$N$39)","v":61.299500000000002},{"$f":"SUMPRODUCT('CSRHub Ratings'!$C22:$N22,'CSRD Mapping'!$C$40:$N$40)","v":62.968999999999994},{"$f":"SUMPRODUCT('CSRHub Ratings'!$C22:$N22,'CSRD Mapping'!$C$41:$N$41)","v":63.700500000000005},{"$f":"SUMPRODUCT('CSRHub Ratings'!$C22:$N22,'CSRD Mapping'!$C$42:$N$42)","v":63.700500000000005},{"$f":"SUMPRODUCT('CSRHub Ratings'!$C22:$N22,'CSRD Mapping'!$C$43:$N$43)","v":63.700500000000005},{"$f":"SUMPRODUCT('CSRHub Ratings'!$C22:$N22,'CSRD Mapping'!$C$44:$N$44)","v":63.700500000000005},{"$f":"SUMPRODUCT('CSRHub Ratings'!$C22:$N22,'CSRD Mapping'!$C$45:$N$45)","v":63.700500000000005},{"$f":"SUMPRODUCT('CSRHub Ratings'!$C22:$N22,'CSRD Mapping'!$C$46:$N$46)","v":63.700500000000005},{"$f":"SUMPRODUCT('CSRHub Ratings'!$C22:$N22,'CSRD Mapping'!$C$47:$N$47)","v":63.700500000000005},{"$f":"SUMPRODUCT('CSRHub Ratings'!$C22:$N22,'CSRD Mapping'!$C$48:$N$48)","v":57.974499999999992},{"$f":"SUMPRODUCT('CSRHub Ratings'!$C22:$N22,'CSRD Mapping'!$C$49:$N$49)","v":58.124999999999993}]
[{"$f":"'Enter Company Names'!J23","v":"BMW"},{"$f":"SUMPRODUCT('CSRHub Ratings'!$C23:$N23,'CSRD Mapping'!$C$15:$N$15)","v":58.414999999999992},{"$f":"SUMPRODUCT('CSRHub Ratings'!$C23:$N23,'CSRD Mapping'!$C$16:$N$16)","v":58.024000000000001},{"$f":"SUMPRODUCT('CSRHub Ratings'!$C23:$N23,'CSRD Mapping'!$C$17:$N$17)","v":58.024000000000001},{"$f":"SUMPRODUCT('CSRHub Ratings'!$C23:$N23,'CSRD Mapping'!$C$18:$N$18)","v":63.97},{"$f":"SUMPRODUCT('CSRHub Ratings'!$C23:$N23,'CSRD Mapping'!$C$19:$N$19)","v":63.97},{"$f":"SUMPRODUCT('CSRHub Ratings'!$C23:$N23,'CSRD Mapping'!$C$20:$N$20)","v":63.97},{"$f":"SUMPRODUCT('CSRHub Ratings'!$C23:$N23,'CSRD Mapping'!$C$21:$N$21)","v":53.129000000000005},{"$f":"SUMPRODUCT('CSRHub Ratings'!$C23:$N23,'CSRD Mapping'!$C$22:$N$22)","v":52.581500000000005},{"$f":"SUMPRODUCT('CSRHub Ratings'!$C23:$N23,'CSRD Mapping'!$C$23:$N$23)","v":52.195},{"$f":"SUMPRODUCT('CSRHub Ratings'!$C23:$N23,'CSRD Mapping'!$C$24:$N$24)","v":56.594000000000001},{"$f":"SUMPRODUCT('CSRHub Ratings'!$C23:$N23,'CSRD Mapping'!$C$25:$N$25)","v":51.924999999999997},{"$f":"SUMPRODUCT('CSRHub Ratings'!$C23:$N23,'CSRD Mapping'!$C$26:$N$26)","v":52.863000000000007},{"$f":"SUMPRODUCT('CSRHub Ratings'!$C23:$N23,'CSRD Mapping'!$C$27:$N$27)","v":62.069000000000003},{"$f":"SUMPRODUCT('CSRHub Ratings'!$C23:$N23,'CSRD Mapping'!$C$28:$N$28)","v":62.806000000000004},{"$f":"SUMPRODUCT('CSRHub Ratings'!$C23:$N23,'CSRD Mapping'!$C$29:$N$29)","v":62.806000000000004},{"$f":"SUMPRODUCT('CSRHub Ratings'!$C23:$N23,'CSRD Mapping'!$C$30:$N$30)","v":62.441000000000003},{"$f":"SUMPRODUCT('CSRHub Ratings'!$C23:$N23,'CSRD Mapping'!$C$31:$N$31)","v":62.441000000000003},{"$f":"SUMPRODUCT('CSRHub Ratings'!$C23:$N23,'CSRD Mapping'!$C$32:$N$32)","v":62.441000000000003},{"$f":"SUMPRODUCT('CSRHub Ratings'!$C23:$N23,'CSRD Mapping'!$C$33:$N$33)","v":54.638999999999996},{"$f":"SUMPRODUCT('CSRHub Ratings'!$C23:$N23,'CSRD Mapping'!$C$34:$N$34)","v":54.697000000000003},{"$f":"SUMPRODUCT('CSRHub Ratings'!$C23:$N23,'CSRD Mapping'!$C$35:$N$35)","v":57.8},{"$f":"SUMPRODUCT('CSRHub Ratings'!$C23:$N23,'CSRD Mapping'!$C$36:$N$36)","v":59.495999999999995},{"$f":"SUMPRODUCT('CSRHub Ratings'!$C23:$N23,'CSRD Mapping'!$C$37:$N$37)","v":55.624000000000009},{"$f":"SUMPRODUCT('CSRHub Ratings'!$C23:$N23,'CSRD Mapping'!$C$38:$N$38)","v":62.341000000000008},{"$f":"SUMPRODUCT('CSRHub Ratings'!$C23:$N23,'CSRD Mapping'!$C$39:$N$39)","v":62.606000000000002},{"$f":"SUMPRODUCT('CSRHub Ratings'!$C23:$N23,'CSRD Mapping'!$C$40:$N$40)","v":62.341000000000008},{"$f":"SUMPRODUCT('CSRHub Ratings'!$C23:$N23,'CSRD Mapping'!$C$41:$N$41)","v":63.155500000000004},{"$f":"SUMPRODUCT('CSRHub Ratings'!$C23:$N23,'CSRD Mapping'!$C$42:$N$42)","v":63.155500000000004},{"$f":"SUMPRODUCT('CSRHub Ratings'!$C23:$N23,'CSRD Mapping'!$C$43:$N$43)","v":63.155500000000004},{"$f":"SUMPRODUCT('CSRHub Ratings'!$C23:$N23,'CSRD Mapping'!$C$44:$N$44)","v":63.155500000000004},{"$f":"SUMPRODUCT('CSRHub Ratings'!$C23:$N23,'CSRD Mapping'!$C$45:$N$45)","v":63.155500000000004},{"$f":"SUMPRODUCT('CSRHub Ratings'!$C23:$N23,'CSRD Mapping'!$C$46:$N$46)","v":63.155500000000004},{"$f":"SUMPRODUCT('CSRHub Ratings'!$C23:$N23,'CSRD Mapping'!$C$47:$N$47)","v":63.155500000000004},{"$f":"SUMPRODUCT('CSRHub Ratings'!$C23:$N23,'CSRD Mapping'!$C$48:$N$48)","v":57.545000000000002},{"$f":"SUMPRODUCT('CSRHub Ratings'!$C23:$N23,'CSRD Mapping'!$C$49:$N$49)","v":57.480000000000004}]
[{"$f":"'Enter Company Names'!J24","v":"NISSAN MOTOR CO.,LTD."},{"$f":"SUMPRODUCT('CSRHub Ratings'!$C24:$N24,'CSRD Mapping'!$C$15:$N$15)","v":56.874000000000002},{"$f":"SUMPRODUCT('CSRHub Ratings'!$C24:$N24,'CSRD Mapping'!$C$16:$N$16)","v":56.296999999999997},{"$f":"SUMPRODUCT('CSRHub Ratings'!$C24:$N24,'CSRD Mapping'!$C$17:$N$17)","v":56.296999999999997},{"$f":"SUMPRODUCT('CSRHub Ratings'!$C24:$N24,'CSRD Mapping'!$C$18:$N$18)","v":65},{"$f":"SUMPRODUCT('CSRHub Ratings'!$C24:$N24,'CSRD Mapping'!$C$19:$N$19)","v":65},{"$f":"SUMPRODUCT('CSRHub Ratings'!$C24:$N24,'CSRD Mapping'!$C$20:$N$20)","v":65},{"$f":"SUMPRODUCT('CSRHub Ratings'!$C24:$N24,'CSRD Mapping'!$C$21:$N$21)","v":53.247},{"$f":"SUMPRODUCT('CSRHub Ratings'!$C24:$N24,'CSRD Mapping'!$C$22:$N$22)","v":53.939499999999995},{"$f":"SUMPRODUCT('CSRHub Ratings'!$C24:$N24,'CSRD Mapping'!$C$23:$N$23)","v":53.805},{"$f":"SUMPRODUCT('CSRHub Ratings'!$C24:$N24,'CSRD Mapping'!$C$24:$N$24)","v":56.510000000000005},{"$f":"SUMPRODUCT('CSRHub Ratings'!$C24:$N24,'CSRD Mapping'!$C$25:$N$25)","v":54.245000000000005},{"$f":"SUMPRODUCT('CSRHub Ratings'!$C24:$N24,'CSRD Mapping'!$C$26:$N$26)","v":53.168999999999997},{"$f":"SUMPRODUCT('CSRHub Ratings'!$C24:$N24,'CSRD Mapping'!$C$27:$N$27)","v":61.538999999999994},{"$f":"SUMPRODUCT('CSRHub Ratings'!$C24:$N24,'CSRD Mapping'!$C$28:$N$28)","v":62.646000000000001},{"$f":"SUMPRODUCT('CSRHub Ratings'!$C24:$N24,'CSRD Mapping'!$C$29:$N$29)","v":62.646000000000001},{"$f":"SUMPRODUCT('CSRHub Ratings'!$C24:$N24,'CSRD Mapping'!$C$30:$N$30)","v":63.173000000000002},{"$f":"SUMPRODUCT('CSRHub Ratings'!$C24:$N24,'CSRD Mapping'!$C$31:$N$31)","v":63.173000000000002},{"$f":"SUMPRODUCT('CSRHub Ratings'!$C24:$N24,'CSRD Mapping'!$C$32:$N$32)","v":63.173000000000002},{"$f":"SUMPRODUCT('CSRHub Ratings'!$C24:$N24,'CSRD Mapping'!$C$33:$N$33)","v":53.962000000000003},{"$f":"SUMPRODUCT('CSRHub Ratings'!$C24:$N24,'CSRD Mapping'!$C$34:$N$34)","v":53.975999999999999},{"$f":"SUMPRODUCT('CSRHub Ratings'!$C24:$N24,'CSRD Mapping'!$C$35:$N$35)","v":56.066000000000003},{"$f":"SUMPRODUCT('CSRHub Ratings'!$C24:$N24,'CSRD Mapping'!$C$36:$N$36)","v":57.94},{"$f":"SUMPRODUCT('CSRHub Ratings'!$C24:$N24,'CSRD Mapping'!$C$37:$N$37)","v":54.141999999999996},{"$f":"SUMPRODUCT('CSRHub Ratings'!$C24:$N24,'CSRD Mapping'!$C$38:$N$38)","v":62.855999999999995},{"$f":"SUMPRODUCT('CSRHub Ratings'!$C24:$N24,'CSRD Mapping'!$C$39:$N$39)","v":63.457499999999996},{"$f":"SUMPRODUCT('CSRHub Ratings'!$C24:$N24,'CSRD Mapping'!$C$40:$N$40)","v":62.855999999999995},{"$f":"SUMPRODUCT('CSRHub Ratings'!$C24:$N24,'CSRD Mapping'!$C$41:$N$41)","v":63.927999999999997},{"$f":"SUMPRODUCT('CSRHub Ratings'!$C24:$N24,'CSRD Mapping'!$C$42:$N$42)","v":63.927999999999997},{"$f":"SUMPRODUCT('CSRHub Ratings'!$C24:$N24,'CSRD Mapping'!$C$43:$N$43)","v":63.927999999999997},{"$f":"SUMPRODUCT('CSRHub Ratings'!$C24:$N24,'CSRD Mapping'!$C$44:$N$44)","v":63.927999999999997},{"$f":"SUMPRODUCT('CSRHub Ratings'!$C24:$N24,'CSRD Mapping'!$C$45:$N$45)","v":63.927999999999997},{"$f":"SUMPRODUCT('CSRHub Ratings'!$C24:$N24,'CSRD Mapping'!$C$46:$N$46)","v":63.927999999999997},{"$f":"SUMPRODUCT('CSRHub Ratings'!$C24:$N24,'CSRD Mapping'!$C$47:$N$47)","v":63.927999999999997},{"$f":"SUMPRODUCT('CSRHub Ratings'!$C24:$N24,'CSRD Mapping'!$C$48:$N$48)","v":56.444499999999998},{"$f":"SUMPRODUCT('CSRHub Ratings'!$C24:$N24,'CSRD Mapping'!$C$49:$N$49)","v":57.252999999999993}]

{"sheet":"CSRD Mapping","index":4,"n_rows":49,"n_cols":14,"rows_kept":49,"cut":false,"hidden":false,"merged":[[7,1,9,1]]}
[]
[]
[]
[]
[]
[]
[null,"CSRHub CSRD Mapping"]
[null,"Below is a mapping of CSRHub data to CSRD. The model was developed by our partner Valutus, under the title \"Materiality Matters.\" You can learn more about Valutus and its work here https://valutus.com/."]
[]
[]
[null,"Reach out to CSRHub to request a custom mapping."]
[]
[]
[null,"CSRD Description","Community Dev & Philanthropy","Human Rights & Supply Chain","Product","Compensation & Benefits","Diversity & Labor Rights","Training, Health & Safety","Energy & Climate Change","Environment Policy & Reporting","Resource Management","Board","Leadership Ethics","Transparency & Reporting"]
[null,"Affected communities - Communities’ civil and political rights",0.6,0.3,null,null,null,null,null,null,null,null,0.1]
[null,"Affected communities - Communities' economic social and cultural rights",0.7,0.2,null,null,null,null,null,null,null,null,0.1]
[null,"Affected communities - Rights of indigenous peoples",0.7,0.2,null,null,null,null,null,null,null,null,0.1]
[null,"Biodiversity and ecosystems - Impacts and dependencies on ecosystem services",null,null,null,null,null,null,null,0.6,0.4]
[null,"Biodiversity and ecosystems - Impacts on the extent and condition of ecosystems",null,null,null,null,null,null,null,0.6,0.4]
[null,"Biodiversity and ecosystems - Impacts on the state of species",null,null,null,null,null,null,null,0.6,0.4]
[null,"Business Conduct - Animal welfare",null,null,null,null,null,0.1,null,null,null,null,0.8,0.1]
[null,"Business Conduct - Corporate culture",null,null,null,null,0.1,null,null,null,null,0.45,0.45]
[null,"Business Conduct - Corruption and bribery",null,null,null,null,null,null,null,null,null,0.5,0.5]
[null,"Business Conduct - Management of relationships with suppliers including payment practices",null,0.4,null,null,null,null,null,null,null,null,0.4,0.2]
[null,"Business Conduct - Political engagement",null,null,null,null,null,null,null,null,null,0.7,0.2,0.1]
[null,"Business Conduct - Protection of whistleblowers",null,null,null,null,null,null,null,null,null,0.1,0.9]
[null,"Circular economy - Resource outflows, related to products and services",null,null,0.3,null,null,null,null,0.1,0.6]
[null,"Circular economy - Resources inflows, including resource use",null,null,0.2,null,null,null,null,0.2,0.6]
[null,"Circular economy - Waste",null,null,0.2,null,null,null,null,0.2,0.6]
[null,"Climate change - Climate change adaptation",null,null,null,null,null,null,0.7,0.2,0.1]
[null,"Climate change - Climate change mitigation",null,null,null,null,null,null,0.7,0.2,0.1]
[null,"Climate change - Energy",null,null,null,null,null,null,0.7,0.2,0.1]
[null,"Consumers and end-users - Health and safety of consumers and/or end-users",null,null,0.5,null,null,0.2,null,null,null,null,0.2,0.1]
[null,"Consumers and end-users - Information-related impacts for consumers and/or end-users",null,null,0.5,null,null,null,null,null,null,null,0.2,0.3]
[null,"Consumers and end-users - Social inclusion of consumers and/or end-users",0.4,0.2,0.4]
[null,"Own workforce - Equal treatment and opportunities for all",null,0.6,null,0.2,0.2]
[null,"Own workforce - Working conditions (overall)",null,null,null,0.2,0.6,0.2]
[null,"Pollution - Microplastics",null,null,0.2,null,null,null,null,0.5,0.3]
[null,"Pollution - Pollution of air",null,null,0.05,null,null,null,0.4,0.4,0.15]
[null,"Pollution - Pollution of living organisms and food resources",null,null,0.2,null,null,null,null,0.5,0.3]
[null,"Pollution - Pollution of soil",null,null,0.1,null,null,null,null,0.55000000000000004,0.35]
[null,"Pollution - Pollution of water",null,null,0.1,null,null,null,null,0.55000000000000004,0.35]
[null,"Pollution - Substances of concern",null,null,0.1,null,null,null,null,0.55000000000000004,0.35]
[null,"Pollution - Substances of very high concern",null,null,0.1,null,null,null,null,0.55000000000000004,0.35]
[null,"Water and marine resources - Direct impact drivers of biodiversity loss",null,null,0.1,null,null,null,null,0.55000000000000004,0.35]
[null,"Water and marine resources - Marine resources",null,null,0.1,null,null,null,null,0.55000000000000004,0.35]
[null,"Water and marine resources - Water",null,null,0.1,null,null,null,null,0.55000000000000004,0.35]
[null,"Workers in the Value Chain - Equal treatment and opportunities for all",null,0.35,null,0.15,0.3,0.2]
[null,"Workers in the Value Chain - Working conditions (overall)",null,0.4,null,null,0.3,0.3]